Cogmind - Beta 12 @@@ ROGUE MODE // 2023.04.13 @ 18:00:48 // AFD2019/Pay2Buy Player: ArabianSandBoa Result: Destroyed by Swarm Drone with Compact Gauss Rifle Performance ------------- Evolutions (9) 4500 Regions Visited (43) 8600 Robots Destroyed (937) 4685 Value Destroyed (58093) 58093 Prototype IDs (285) 5700 Alien Tech Used (1) 200 Bonus (60615) 60615 TOTAL SCORE: 142393 Bonus ------- Triggered High Security 3000 High Alert Combat Kills 34960 Follower Combat Kills 2840 Entered Garrisons 1400 Entered DSFs 500 Network Hubs Disabled 400 Aligned with FarCom 300 Met Data Miner 300 Met Warlord at Base 500 MAIN.C Attacked Warlord 500 Warlord Defense Kills 440 Built Enhanced Grunts 300 Met R17 at Cetus 500 Found Hidden Lab 3000 Met R17 at Research 2000 Scanned by Researcher 500 Destroyed MAIN.C Guards 500 Met MAIN.C 5000 Destroyed MAIN.C Shell 5000 Met Warlord at Command 2000 Friendly Fire -3325 Cogmind --------- Core Integrity 0/1600 Matter 14/300 Energy 94/100 System Corruption 27% Temperature Cool (0) Movement Core (250) Ox4 Location -1/Command Parts ------- > --- POWER (3) -------- (None) > --- PROPULSION (2) --- (None) > --- UTILITY (16) ----- Experimental Core Analyzer Graphene Brace Experimental System Shield > --- WEAPON (4) ------- Point Singularity Launcher > --- INVENTORY (10) --- Zero-point Reactor High-density Centrium Wheel Encrypted Comm Array Weapon Mount Advanced Kinecellerator Heavy Neutron Cannon Tactical Quantum Warhead Peak State ------------ > --- POWER ------------ Singularity Reactor > --- PROPULSION ------- Improved Heavy Siege Treads > --- UTILITY ---------- Advanced Power Amplifier Advanced Power Amplifier Weapon Mount Experimental Core Analyzer Armor Integrity Analyzer Precision Matter Filter Advanced Kinecellerator Experimental Weapon Cycler Centrium Medium Armor Plating Graphene Brace Advanced Focal Shield Experimental Thermal Defense Suite 7V-RTL's Ultimate Field Advanced Hacking Suite Experimental System Shield Long-range Tractor Beam > --- WEAPON ----------- Tri-rail Accelerator Compact Mass Driver Point Singularity Launcher > --- INVENTORY -------- Zero-point Reactor Centrium Wheel High-density Centrium Wheel Encrypted Comm Array Supercharged TR Heavy Neutron Cannon Improved Matter Neutralizer Tactical Quantum Warhead [Rating: 204] Favorites ----------- Power Reinforced Deuterium Engine Engine Reinforced Deuterium Engine Power Core Enhanced Fission Core Reactor Improved Quantum Reactor Propulsion Armored Huge Wheel Treads Improved Heavy Siege Treads Wheel Armored Huge Wheel Utility Advanced Power Amplifier Device Advanced Power Amplifier Processor Armor Integrity Analyzer Hackware Advanced Hacking Suite Protection Improved Heavy Armor Plating Weapon Cooled Plasma Cannon Energy Cannon Cooled Plasma Cannon Ballistic Gun Advanced KE Penetrator Ballistic Cannon Tri-rail Accelerator Launcher Neutron Missile Launcher Special Weapon Remote Datajack Build | -11 -10 -10 -9 -9 -9 -8 -8 -8 -8 -8 -8 -7 -7 -7 -7 -6 -6 -6 -6 -5 -5 -5 -5 -5 -4 -4 -4 -4 -4 -4 -4 -4 -3 -3 -3 -3 -3 -2 -2 -2 -2 -1 -1 ------- Run | Jun Mat Min Mat Min Exi Min Mat Gar Mat Gar Mat Fac Gar Fac Gar Fac Low Low Dat Pro Fac Upp Upp War Pro Fac Gar Fac Ext Cet Arc Hub Res Gar Res Arm Lab Res Gar Res DSF Acc Com Slots Evolved 18 | . . . 2 . . . 2 . . . . 2 . . . 2 . . . . 2 . . . . 2 . . . . . . 2 . . . . 2 . . . 2 . Power 2 | . . . . . . . 1 . . . . . . . . 1 . . . . . . . . . . . . . . . . . . . . . . . . . . . Propulsion . | . . . . . . . . . . . . . . . . . . . . . . . . . . . . . . . . . . . . . . . . . . . . Utility 14 | . . . 2 . . . 1 . . . . 2 . . . 1 . . . . 2 . . . . 2 . . . . . . 2 . . . . 2 . . . . . Weapon 2 | . . . . . . . . . . . . . . . . . . . . . . . . . . . . . . . . . . . . . . . . . . 2 . Parts Attached 243 | . . . 16 2 . 5 7 15 . 5 9 . 8 . 14 . 2 . . 5 3 5 . 3 6 1 15 3 15 10 3 26 4 13 . 27 3 2 2 . . 6 8 Power 14 | . . . . . . . 1 . . . . . . . . . . . . . . . . . 2 . . . 1 . . . 3 . . 6 . . . . . 1 . Engine 2 | . . . . . . . 1 . . . . . . . . . . . . . . . . . . . . . 1 . . . . . . . . . . . . . . Core 1 | . . . . . . . . . . . . . . . . . . . . . . . . . . . . . . . . . . . . 1 . . . . . . . Reactor 11 | . . . . . . . . . . . . . . . . . . . . . . . . . 2 . . . . . . . 3 . . 5 . . . . . 1 . Propulsion 23 | . . . . . . . . 1 . . . . . . . . . . . . . . . . 1 . . . 1 . 3 6 . 3 . 1 . 1 1 . . 3 2 Treads 9 | . . . . . . . . . . . . . . . . . . . . . . . . . 1 . . . 1 . 1 2 . 1 . 1 . . 1 . . 1 . Leg . | . . . . . . . . . . . . . . . . . . . . . . . . . . . . . . . . . . . . . . . . . . . . Wheel 14 | . . . . . . . . 1 . . . . . . . . . . . . . . . . . . . . . . 2 4 . 2 . . . 1 . . . 2 2 Hover . | . . . . . . . . . . . . . . . . . . . . . . . . . . . . . . . . . . . . . . . . . . . . Flight . | . . . . . . . . . . . . . . . . . . . . . . . . . . . . . . . . . . . . . . . . . . . . Utility 61 | . . . 6 . . 2 . 2 . 3 4 . 2 . 6 . 2 . . 2 2 . . 1 . . 2 3 6 4 . 4 1 5 . 2 . . 1 . . 1 . Device 47 | . . . 6 . . 2 . 2 . 2 4 . 2 . 4 . 1 . . 2 2 . . 1 . . 2 3 2 4 . 2 . 3 . 2 . . . . . 1 . Storage . | . . . . . . . . . . . . . . . . . . . . . . . . . . . . . . . . . . . . . . . . . . . . Processor 1 | . . . . . . . . . . . . . . . . . . . . . . . . . . . . . . . . . . 1 . . . . . . . . . Hackware 2 | . . . . . . . . . . . . . . . . . . . . . . . . . . . . . . . . . 1 1 . . . . . . . . . Protection 11 | . . . . . . . . . . 1 . . . . 2 . 1 . . . . . . . . . . . 4 . . 2 . . . . . . 1 . . . . Artifact . | . . . . . . . . . . . . . . . . . . . . . . . . . . . . . . . . . . . . . . . . . . . . Weapon 145 | . . . 10 2 . 3 6 12 . 2 5 . 6 . 8 . . . . 3 1 5 . 2 3 1 13 . 7 6 . 16 . 5 . 18 3 1 . . . 1 6 Energy Gun . | . . . . . . . . . . . . . . . . . . . . . . . . . . . . . . . . . . . . . . . . . . . . Energy Cannon 66 | . . . 4 2 . 1 4 7 . 1 3 . 3 . 6 . . . . 2 . 3 . 1 2 . 7 . 5 3 . 6 . 3 . . 2 . . . . . 1 Ballistic Gun . | . . . . . . . . . . . . . . . . . . . . . . . . . . . . . . . . . . . . . . . . . . . . Ballistic Cannon 11 | . . . . . . . . . . . . . . . . . . . . . . . . . . . . . . . . . . . . 9 . 1 . . . 1 . Launcher 67 | . . . 6 . . 2 2 5 . 1 2 . 3 . 2 . . . . 1 1 2 . . 1 1 6 . 2 3 . 10 . 2 . 9 1 . . . . . 5 Special Weapon 1 | . . . . . . . . . . . . . . . . . . . . . . . . 1 . . . . . . . . . . . . . . . . . . . Impact Weapon . | . . . . . . . . . . . . . . . . . . . . . . . . . . . . . . . . . . . . . . . . . . . . Slashing Weapon . | . . . . . . . . . . . . . . . . . . . . . . . . . . . . . . . . . . . . . . . . . . . . Piercing Weapon . | . . . . . . . . . . . . . . . . . . . . . . . . . . . . . . . . . . . . . . . . . . . . Special Melee Weapon . | . . . . . . . . . . . . . . . . . . . . . . . . . . . . . . . . . . . . . . . . . . . . Unidentified Prototypes . | . . . . . . . . . . . . . . . . . . . . . . . . . . . . . . . . . . . . . . . . . . . . Parts Lost 93 | . 1 . 3 . . 1 2 4 . 1 3 . 4 . 11 1 . . . 2 1 1 2 . . . 2 . 3 . . 13 . 5 . 11 . . 2 . 1 . 19 Power 12 | . . . . . . . . . . . 2 . . . 1 . . . . . 1 . . . . . . . 2 . . 1 . . . 4 . . . . . . 1 Propulsion 5 | . . . . . . . 1 . . . . . 1 . 1 . . . . . . . . . . . . . . . . . . . . . . . . . . . 2 Utility 63 | . 1 . 2 . . 1 1 3 . 1 . . 3 . 6 1 . . . 2 . 1 2 . . . 2 . . . . 12 . 4 . 7 . . 2 . 1 . 11 Weapon 13 | . . . 1 . . . . 1 . . 1 . . . 3 . . . . . . . . . . . . . 1 . . . . 1 . . . . . . . . 5 Highest Loss Streak 11 | . 1 . 1 . . 1 1 2 . 1 1 . 2 . 8 1 . . . 2 1 1 2 . . . 1 . 2 . . 4 . 3 . 4 . . 1 . 1 . 11 To Critical Strikes 1 | . . . . . . . . . . . . . . . . . . . . . . . . . . . . . . . . 1 . . . . . . . . . . . Average Slot Usage (%) 84 | . 16 21 91 100 100 99 91 88 63 89 88 69 68 69 81 77 85 86 86 84 78 82 83 76 87 84 86 89 88 93 92 88 89 87 80 78 84 88 85 82 85 75 75 Engine 5 | . . . 9 11 11 11 18 18 18 18 10 . . . 8 6 6 6 6 6 5 5 5 5 1 . . . 4 5 5 3 . . . . . . . . . . . Core 2 | . . . . . . . . . . . 5 7 7 7 1 3 6 6 6 6 8 11 11 11 7 5 5 5 4 5 5 6 . . . . . . . . . . . Reactor 5 | . . . . . . . . . . . . . . . . . 5 6 6 6 2 . . . 6 10 10 10 5 5 5 4 13 14 14 13 14 13 13 13 13 4 3 Treads 1 | . . . . . . . . . . . . . . . . . . . . . . . . . 3 5 5 5 5 . 1 3 . . . 4 4 . 3 4 4 2 3 Wheel 5 | . . . 19 22 22 22 10 9 9 9 9 7 7 7 6 6 6 6 6 6 5 5 5 5 1 . . . . 9 7 3 9 7 9 . . 7 . . . 3 1 Device 28 | . 3 . 11 11 11 20 26 8 . 21 17 15 15 15 21 24 14 13 13 12 17 23 26 23 29 31 33 40 38 48 52 44 37 38 38 39 47 47 42 39 42 41 39 Processor 11 | . . . 19 33 33 12 9 26 18 9 10 15 15 15 15 13 13 15 20 14 11 11 9 5 10 7 5 5 3 . . 3 3 8 14 12 4 4 7 8 8 8 8 Hackware 1 | . . . . . . . . . . . . . . . 5 9 13 10 6 6 1 . . . . . . . . . . . . 9 . . . . . . . . 7 Protection 8 | . . 10 8 . . 9 9 8 . 13 16 7 6 7 3 . 5 6 6 10 11 11 11 11 11 12 14 11 13 8 5 7 13 . . 2 4 8 12 13 12 8 3 Energy Cannon 8 | . . 10 7 18 22 3 11 16 18 15 17 15 8 15 13 13 13 13 13 12 8 10 11 10 6 6 7 5 9 8 10 7 8 4 . . 7 5 . . . . . Ballistic Cannon 1 | . . . . . . . . . . . . . . . . . . . . . . . . . . . . . . . . . . 1 4 3 . 1 4 4 4 8 6 Launcher 2 | . 12 . 14 3 . 18 6 1 . 2 . . 4 . . . . . . . 2 . . . 3 3 2 5 . 1 . 2 . . . . . . . . . . . Naked Turns 33 | . 20 13 . . . . . . . . . . . . . . . . . . . . . . . . . . . . . . . . . . . . . . . . . Heaviest Build 159 | . 2 11 30 22 22 42 70 67 44 76 76 32 56 55 73 52 77 77 77 77 89 95 107 107 119 142 147 149 156 156 132 143 139 115 103 132 142 153 148 144 150 159 143 Greatest Support 75 | 3 3 3 24 24 24 24 28 28 28 28 28 28 28 28 28 28 28 28 28 28 28 28 28 28 75 75 75 75 75 75 75 75 32 75 32 75 75 36 75 75 75 75 75 Greatest Overweight (x) 9 | . . 3 4 . . 1 5 2 1 2 2 1 1 1 2 1 2 2 2 2 3 3 3 3 3 1 1 1 2 4 4 4 4 3 3 3 1 9 3 1 1 4 3 Average Overweight (x) 1 | . . 1 . . . . 2 1 1 1 1 1 1 1 1 1 1 2 2 2 2 3 3 3 2 1 1 1 1 3 3 2 3 2 3 1 1 4 1 1 1 3 1 Largest Inventory Capacity 10 | . 10 10 10 10 10 10 10 10 10 10 10 10 10 10 10 10 10 10 10 10 10 10 10 10 10 10 10 10 10 10 10 10 10 10 10 10 10 10 10 10 10 10 10 Average Capacity 10 | . 10 10 10 10 10 10 10 10 10 10 10 10 10 10 10 10 10 10 10 10 10 10 10 10 10 10 10 10 10 10 10 10 10 10 10 10 10 10 10 10 10 10 10 Most Carried 10 | . . 1 10 10 8 10 10 10 10 10 10 10 10 10 10 9 10 10 10 10 10 10 10 10 10 10 10 10 10 9 9 10 10 10 10 10 10 10 10 10 10 10 9 Average Carried 9 | . . 1 4 8 8 9 9 9 10 9 9 10 9 10 9 8 9 10 10 9 9 9 10 9 9 9 9 9 9 8 8 9 9 9 10 9 9 9 9 10 10 9 8 Final Capacity 10 | 10 10 10 10 10 10 10 10 10 10 10 10 10 10 10 10 10 10 10 10 10 10 10 10 10 10 10 10 10 10 10 10 10 10 10 10 10 10 10 10 10 10 10 10 Final Carried 10 | . . 1 10 8 8 10 10 10 10 10 10 10 10 10 8 9 10 10 10 10 9 10 10 10 10 9 10 10 8 9 9 8 10 10 10 9 9 10 10 10 10 9 7 Class Distribution -------------------- 79% | Mutant 9% | Hacker-Mutant 4% | Commander-Mutant 4% | Tank Dominant Class ---------------- Mutant | -10/Materials Mutant | -10/Mines Mutant | -9/Materials Mutant | -9/Mines Mutant | -9/Exiles Mutant | -8/Mines Mutant | -8/Materials Mutant | -8/Garrison Mutant | -8/Materials Mutant | -8/Garrison Mutant | -8/Materials Mutant | -7/Factory Mutant | -7/Garrison Mutant | -7/Factory Mutant | -7/Garrison Hacker-Mutant | -6/Factory Hacker-Mutant | -6/Lower Caves Hacker-Mutant | -6/Lower Caves Mutant | -6/Data Miner Mutant | -5/Proximity Caves Mutant | -5/Factory Mutant | -5/Upper Caves Mutant | -5/Upper Caves Mutant | -5/Warlord Mutant | -4/Proximity Caves Mutant | -4/Factory Mutant | -4/Garrison Mutant | -4/Factory Mutant | -4/Extension Mutant | -4/Cetus Commander-Mutant | -4/Archives Mutant | -4/Hub_04(d) Mutant | -3/Research Hacker-Mutant | -3/Garrison Mutant | -3/Research Mutant | -3/Armory Mutant | -3/Lab Mutant | -2/Research Mutant | -2/Garrison Mutant | -2/Research Mutant | -2/DSF Tank | -1/Access Hacker-Mutant | -1/Command Resources | -11 -10 -10 -9 -9 -9 -8 -8 -8 -8 -8 -8 -7 -7 -7 -7 -6 -6 -6 -6 -5 -5 -5 -5 -5 -4 -4 -4 -4 -4 -4 -4 -4 -3 -3 -3 -3 -3 -2 -2 -2 -2 -1 -1 ----------- Run | Jun Mat Min Mat Min Exi Min Mat Gar Mat Gar Mat Fac Gar Fac Gar Fac Low Low Dat Pro Fac Upp Upp War Pro Fac Gar Fac Ext Cet Arc Hub Res Gar Res Arm Lab Res Gar Res DSF Acc Com Matter Collected 17258 | . 294 . 1359 143 . 43 585 500 . 269 267 . 727 . 539 . 20 . . 171 257 361 64 84 361 31 712 401 794 240 204 2234 7 1287 . 2893 179 183 416 . 116 553 964 Remotely 14887 | . 198 . 1252 . . 43 585 400 . 249 152 . 727 . 197 . . . . . 223 64 . 60 361 31 531 392 409 240 204 2234 7 1141 . 2893 179 183 416 . 116 553 847 Salvage Created 31283 | . 408 . 1702 73 . 92 1199 1184 . 722 1646 . 727 . 1137 835 56 450 . 537 433 626 222 167 1045 33 1527 917 1515 119 71 4795 7 2227 . 3037 179 . 1403 . 453 1183 556 Parts . | . . . . . . . . . . . . . . . . . . . . . . . . . . . . . . . . . . . . . . . . . . . . Haulers Intercepted 11 | . . . 3 . . . 2 . . . 1 . . . . 1 . . . . . . . . . . . 1 . . . 3 . . . . . . . . . . . Recyclers Shooed 1 | . . . . . . . 1 . . . . . . . . . . . . . . . . . . . . . . . . . . . . . . . . . . . . Parts Field Recycled . | . . . . . . . . . . . . . . . . . . . . . . . . . . . . . . . . . . . . . . . . . . . . Retrieved Matter . | . . . . . . . . . . . . . . . . . . . . . . . . . . . . . . . . . . . . . . . . . . . . Parts Self-Destructed . | . . . . . . . . . . . . . . . . . . . . . . . . . . . . . . . . . . . . . . . . . . . . Prevented . | . . . . . . . . . . . . . . . . . . . . . . . . . . . . . . . . . . . . . . . . . . . . Kills | -11 -10 -10 -9 -9 -9 -8 -8 -8 -8 -8 -8 -7 -7 -7 -7 -6 -6 -6 -6 -5 -5 -5 -5 -5 -4 -4 -4 -4 -4 -4 -4 -4 -3 -3 -3 -3 -3 -2 -2 -2 -2 -1 -1 ------- Run | Jun Mat Min Mat Min Exi Min Mat Gar Mat Gar Mat Fac Gar Fac Gar Fac Low Low Dat Pro Fac Upp Upp War Pro Fac Gar Fac Ext Cet Arc Hub Res Gar Res Arm Lab Res Gar Res DSF Acc Com Combat Hostiles Destroyed 834 | . 18 . 51 1 . 6 25 36 . 31 35 . 38 . 27 8 1 6 . 11 7 14 6 3 25 5 50 21 31 10 2 107 . 48 . 128 4 . 36 . 8 26 9 Cannons 323 | . . . 13 1 . . 9 16 . 8 22 . 3 . 19 5 1 5 . 7 1 4 6 3 3 . 9 . 14 1 2 9 . 19 . 61 3 . 36 . 8 26 9 AOE 498 | . 18 . 38 . . 6 16 20 . 23 12 . 35 . 6 3 . . . 3 6 8 . . 22 5 38 21 17 9 . 98 . 27 . 67 . . . . . . . Classes Destroyed 28 | . 6 . 7 . . . 3 2 . . . . . . 1 . . . . . 1 . . . . . 1 . 1 . . . . . . 3 . . . . . . 3 Worker 32 | . 5 . 9 1 . . 4 . . . . . . . . 2 . . . . 2 . . . . . . 2 . . . 2 1 . 1 . . . . . . 2 1 Builder 17 | . 1 . . . . . 2 . . . 3 . . . . 1 . . . . 2 . . . . . . 2 . . . 3 . . . . . . . . . 3 . Tunneler 4 | . 1 . 2 . . . . . . . . . . . . . . . . . 1 . . . . . . . . . . . . . . . . . . . . . . Hauler 11 | . . . 3 . . . 2 . . . 1 . . . . 1 . . . . . . . . . . . 1 . . . 3 . . . . . . . . . . . Recycler 15 | . . . . . . . 3 . . . . . . . . 2 . . . . 2 . . . . . . 1 3 . . 4 . . . . . . . . . . . Carrier 3 | . . . . . . . 1 . . . . . . . . . . . . . . . . . . . . . . . . 2 . . . . . . . . . . . Mechanic 14 | . . . 1 . . . . . . . . . . . . . . . . . . . . . . . . . 1 . . 5 . . . 7 . . . . . . . Operator 8 | . . . 2 . . . 1 . . . 1 . . . . . . . . . 1 . . . . . . 1 . . . . . . . 2 . . . . . . . Watcher 29 | . 2 . 3 . . . 5 . . . 1 . 1 . . 1 . . . . 1 . . . . . . 3 2 2 . 5 . . . 2 . . . . . 1 . Swarmer 146 | . 3 . 4 . . 3 5 3 . 14 . . 16 . 9 . . . . . 4 2 5 . 6 5 20 3 6 5 . . . . . 5 . . 16 . . 12 . Cutter 3 | . . . . . . . . . . . . . . . . . . . . . . . . . . . . . . . . . . . . 3 . . . . . . . Saboteur 16 | . . . . . . . . . . . . . . . . . . . . . . . . . . . . . 1 . . 6 . . . 9 . . . . . . . Grunt 345 | . 15 . 31 . . 2 12 21 . 12 20 . 9 . 6 6 . 2 . 6 . 7 . . 12 . 14 14 16 . . 45 . 25 . 53 3 . 10 . . 4 . Brawler 32 | . . . 2 . . . 1 . . . . . . . . . . . . 3 . 2 . . . . 2 . 1 . . 8 . 3 . 10 . . . . . . . Duelist 37 | . . . 3 . . 1 3 1 . 1 4 . . . . 1 . 1 . 1 . . . . . . 1 1 2 . . 10 . . . 7 . . . . . . . Protector 16 | . . . 2 . . . . . . . 2 . . . . . . . . . . . . . 1 . . . 1 . . 5 . . . 5 . . . . . . . Sentry 76 | . . . 9 1 . . 3 6 . 1 4 . 4 . 7 1 . . . 1 2 2 . . 3 . 6 1 1 . 2 13 . 4 . 2 . . 2 . . 1 . Specialist 23 | . . . . . . . . 2 . . 4 . 2 . . . . . . . . . . . 1 . . . . . . . . 2 . 6 . . 2 . 2 2 . Hunter 55 | . . . . . . . 1 2 . . 1 . 2 . 3 . 1 2 . . . 1 . . 3 . 2 2 . . . 8 . 5 . 10 . . 4 . 3 4 1 Programmer 59 | . . . . . . . . 1 . 3 . . 5 . 1 . . . . . . . . 3 2 . 3 . 2 2 . 7 . 8 . 13 . . 1 . 2 2 4 Heavy 5 | . . . . . . . . . . . . . . . . . . . . . 1 . . . . . . . . . . . . . . 2 . . . . 1 1 . Behemoth 7 | . . . . . . . . . . . . . . . 1 . . 1 . . . . 1 . . . . . 1 . . . . 1 . 1 . . 1 . . . . Cetus Guard 3 | . . . . . . . . . . . . . . . . . . . . . . . . . . . . . . 3 . . . . . . . . . . . . . Enhanced Grunt 1 | . . . . . . . . . . . . . . . . . . . . . . . . . . . . . . . . 1 . . . . . . . . . . . Enhanced Q-Series 1 | . . . . . . . . . . . . . . . . . . . . . . . . . . . . . . . . . . . . . . . . . . . 1 Lightning 5 | . . . . . . . . . . . . . . . . . . . . . . . . . . . . . . . . 5 . . . . . . . . . . . Investigator 2 | . . . . . . . . . . . . . . . . . . . . . . . . . . . . . . . . . . . . 2 . . . . . . . Striker 1 | . . . . . . . . . . . . . . . . . . . . . . . . . . . . . . . . . . . . 1 . . . . . . . Executioner 3 | . . . . . . . . . . . . . . . . . . . . . . . . . . . 2 . . . . . . . . 1 . . . . . . . Thug 2 | . . . . . . . . . . . . . . . . . . . . . . . . . . . . 1 . . . . . . . . . . . . . . 1 Savage 1 | . . . . . . . . . . . . . 1 . . . . . . . . . . . . . . . . . . . . . . . . . . . . . . Martyr 1 | . . . . . . . . . . . . . . . . . . . . . . . . . . . . . . . . . . . . . . . . . . . 1 Guerrilla 1 | . . . . . . . . . . . . . . . . . . . . . . . . . . . . 1 . . . . . . . . . . . . . . . Mutant 1 | . . . . . . . . . . . . . . . . . . . . . . . . . . . . . . . . . . . . . . . . . . . 1 Best Kill Streak 32 | . 14 . 16 1 . 3 12 7 . 15 7 . 10 . 5 10 1 3 . 11 12 9 5 3 16 5 5 8 10 10 1 31 1 12 1 32 3 . 11 . 3 10 4 Combat Bots Only 29 | . 9 . 9 1 . 3 6 7 . 15 7 . 10 . 5 3 1 3 . 11 4 9 5 3 16 5 5 8 10 9 1 21 . 12 . 29 3 . 11 . 3 9 4 Max Kills in Single Turn 10 | . 3 . 5 1 . 3 4 3 . 5 3 . 3 . 3 10 1 1 . 2 4 4 1 1 5 3 5 3 5 4 1 5 1 4 1 6 1 . 2 . 1 2 1 Gunslinging . | . . . . . . . . . . . . . . . . . . . . . . . . . . . . . . . . . . . . . . . . . . . . Exploded 5 | . 3 . 5 . . 3 3 3 . 5 3 . 3 . 3 3 . . . 2 4 4 . . 5 3 5 3 5 4 . 5 . 4 . 5 . . . . . . . Melee . | . . . . . . . . . . . . . . . . . . . . . . . . . . . . . . . . . . . . . . . . . . . . Uniques/NPCs Destroyed 2 | . . . . . . . . . . . . . . . . . . . . . . . . . . . . . . . . . . . . . 1 . . . . . 1 A5 (-3/Lab) MAIN.C Shell (-1/Command) Combat | -11 -10 -10 -9 -9 -9 -8 -8 -8 -8 -8 -8 -7 -7 -7 -7 -6 -6 -6 -6 -5 -5 -5 -5 -5 -4 -4 -4 -4 -4 -4 -4 -4 -3 -3 -3 -3 -3 -2 -2 -2 -2 -1 -1 -------- Run | Jun Mat Min Mat Min Exi Min Mat Gar Mat Gar Mat Fac Gar Fac Gar Fac Low Low Dat Pro Fac Upp Upp War Pro Fac Gar Fac Ext Cet Arc Hub Res Gar Res Arm Lab Res Gar Res DSF Acc Com Damage Taken 26792 | . 233 . 1060 . . 30 826 1267 . 674 661 . 1199 . 2437 142 . 336 . 423 390 379 257 117 670 135 1040 311 1055 268 346 2823 18 1441 . 2911 138 7 471 . 197 321 4209 Core 3493 | . 185 . 180 . . . 124 163 . 69 117 . 138 . 228 7 . 19 . 42 49 13 11 22 6 . 10 7 72 17 9 281 . 156 . 120 3 . 6 . 4 3 1432 Absorbed by Shields 19997 | . . . . . . . . 23 . . . . . . 415 98 . 352 . 206 399 394 268 121 381 147 933 300 1000 232 261 1659 18 1525 . 5002 463 24 1584 . 657 1047 2488 Reduced by Siege Mode 581 | . . . . . . . . . . . . . . . . . . . . . . . . . . . 19 . 20 . 15 21 . 45 . 323 17 . 29 . 6 14 72 Redirected to Shielding 289 | . . . . . . . . . . . . . . . . . . . . . 29 7 6 . . . . . . . . 96 . . . 151 . . . . . . . Regen/Repaired (Parts) 237 | . . . . . . . . . . . . . . . . . . . . . . . . 237 . . . . . . . . . . . . . . . . . . . Core Remaining (%) 66 | 100 . 26 . . . 55 . . . . 14 . . . 47 . . . . 92 . . . . 89 . . . . . . 65 . . . . 78 . . . 99 . . Volleys Fired 1846 | . 35 2 110 7 . 13 71 79 8 66 74 . 71 . 84 29 3 23 . 26 39 19 17 17 20 2 75 33 73 21 17 153 14 121 19 191 27 13 89 . 29 62 94 Largest 2 | . 1 1 2 2 . 2 2 2 2 2 2 . 2 . 2 2 2 2 . 2 2 2 2 2 2 1 2 2 2 2 2 2 2 2 1 1 2 1 1 . 1 2 2 Hottest 223 | . 30 68 150 150 . 66 135 60 60 75 90 . 60 . 70 70 70 70 . 70 105 70 70 70 70 49 70 84 220 220 220 220 223 223 60 60 223 110 60 . 60 120 179 Shots Fired 2641 | . 35 2 180 13 . 16 100 130 16 110 133 . 85 . 154 58 6 46 . 47 55 33 34 26 29 2 108 34 115 25 34 178 26 167 19 193 48 13 89 . 29 122 131 Gun 11 | . . . . . . . . . . . . . . . . . . . . . . . . . . . . . . . . . . . . . . . . . . . 11 Cannon 1959 | . . 2 81 12 . 2 74 112 16 97 123 . 27 . 142 58 6 46 . 42 36 28 34 18 18 . 65 1 89 8 34 54 25 140 19 151 42 13 89 . 29 122 104 Launcher 663 | . 35 . 99 1 . 14 26 18 . 13 10 . 58 . 12 . . . . 5 19 5 . . 11 2 43 33 26 17 . 124 1 27 . 42 6 . . . . . 16 Special 8 | . . . . . . . . . . . . . . . . . . . . . . . . 8 . . . . . . . . . . . . . . . . . . . Kinetic 565 | . . . . . . . . . . . . . . . . . . . . . . . . . . . . . . . . . . 40 19 151 . 4 89 . 29 122 111 Thermal 1405 | . . 2 81 12 . 2 74 112 16 97 123 . 27 . 142 58 6 46 . 42 36 28 34 18 18 . 65 1 89 8 34 54 25 100 . . 42 9 . . . . 4 Explosive 663 | . 35 . 99 1 . 14 26 18 . 13 10 . 58 . 12 . . . . 5 19 5 . . 11 2 43 33 26 17 . 124 1 27 . 42 6 . . . . . 16 Electromagnetic . | . . . . . . . . . . . . . . . . . . . . . . . . . . . . . . . . . . . . . . . . . . . . Robot Hit Streak 58 | . 4 . 27 5 . 3 28 18 . 10 22 . 27 . 23 8 9 25 . 21 35 13 29 12 14 3 39 17 22 15 10 23 2 35 . 58 41 . 41 . 42 46 22 Robot Miss Streak 4 | . 1 . 2 2 . . 4 2 . 3 3 . 2 . 1 1 . 1 . 1 1 1 3 1 4 . 1 1 3 1 1 2 1 3 . 2 1 . 3 . 2 3 2 Penetration Max . | . . . . . . . . . . . . . . . . . . . . . . . . . . . . . . . . . . . . . . . . . . . . Secondary Targets . | . . . . . . . . . . . . . . . . . . . . . . . . . . . . . . . . . . . . . . . . . . . . Shots Hit Robots 1492 | . 7 . 65 5 . 3 53 67 . 43 71 . 45 . 101 27 1 34 . 34 15 26 22 18 20 2 64 17 69 16 25 78 3 112 . 144 38 . 75 . 26 64 102 Core Hits 1971 | . 39 . 104 2 . 9 102 97 . 57 77 . 74 . 40 18 1 14 . 22 23 23 8 3 45 6 69 48 69 45 8 277 1 115 1 334 13 . 78 . 26 60 63 Critical Kills 8 | . . . . . . . . . . . . . . . . . . 1 . . 1 2 . . . . 1 . . . . . . 2 . . 1 . . . . . . Critical Parts Destroyed 1 | . . . . . . . . . . . . . . . . . . . . . . . . . . . . . . . . . . . . . . . . . . . 1 Critical Strikes 20 | . . . . . . . . . . . . . . . . . . 1 . . 1 2 . . . . 1 . . . . . . 5 . 5 1 . . . . 1 3 Meltdown 8 | . . . . . . . . . . . . . . . . . . 1 . . 1 2 . . . . 1 . . . . . . 2 . . 1 . . . . . . Destroy 2 | . . . . . . . . . . . . . . . . . . . . . . . . . . . . . . . . . . . . . . . . . . . 2 Blast 10 | . . . . . . . . . . . . . . . . . . . . . . . . . . . . . . . . . . 3 . 5 . . . . . 1 1 Melee Attacks . | . . . . . . . . . . . . . . . . . . . . . . . . . . . . . . . . . . . . . . . . . . . . Impact . | . . . . . . . . . . . . . . . . . . . . . . . . . . . . . . . . . . . . . . . . . . . . Slashing . | . . . . . . . . . . . . . . . . . . . . . . . . . . . . . . . . . . . . . . . . . . . . Piercing . | . . . . . . . . . . . . . . . . . . . . . . . . . . . . . . . . . . . . . . . . . . . . Sneak Attacks . | . . . . . . . . . . . . . . . . . . . . . . . . . . . . . . . . . . . . . . . . . . . . Combat Hostiles . | . . . . . . . . . . . . . . . . . . . . . . . . . . . . . . . . . . . . . . . . . . . . Follow-up Attacks . | . . . . . . . . . . . . . . . . . . . . . . . . . . . . . . . . . . . . . . . . . . . . Damage Inflicted 164272 | . 1894 . 5140 166 . 526 3754 4358 . 2476 3785 . 4930 . 4706 2347 33 1132 . 2328 2391 2607 989 494 4649 703 9469 6630 8663 3191 1452 28988 118 12725 59 24252 1716 . 5388 . 2052 3701 6460 Guns 374 | . . . . . . . . . . . . . . . . . . . . . . . . . . . . . . . . . . . . . . . . . . . 374 Cannons 56618 | . . . 975 125 . . 1096 1522 . 1085 2009 . 588 . 3719 921 33 1132 . 965 314 825 989 494 354 . 1941 . 3186 258 1226 1598 118 4856 59 8615 1086 . 5336 . 2052 3492 5649 Explosions 107272 | . 1894 . 4165 41 . 526 2658 2836 . 1391 1776 . 4342 . 987 1426 . . . 1363 2077 1782 . . 4295 703 7528 6630 5469 2933 226 27390 . 7869 . 15637 630 . 52 . . 209 437 Melee . | . . . . . . . . . . . . . . . . . . . . . . . . . . . . . . . . . . . . . . . . . . . . Ramming 8 | . . . . . . . . . . . . . . . . . . . . . . . . . . . . . 8 . . . . . . . . . . . . . . Kinetic 27655 | . . . . . . . . . . . . . . . . . . . . . . . . . . . . . . . . . . 2194 59 8615 . . 5336 . 2052 3492 5907 Thermal 32275 | . . . 1082 125 . . 1096 1522 . 1085 2009 . 588 . 3719 2347 33 1132 . 965 359 825 989 494 626 . 1941 . 3241 258 1452 2122 118 2945 . . 1086 . . . . . 116 Explosive 103705 | . 1894 . 4058 41 . 526 2658 2836 . 1391 1776 . 4342 . 987 . . . . 1363 2032 1782 . . 4023 669 7528 6630 5414 2933 . 26379 . 7586 . 15637 630 . 52 . . 101 437 Electromagnetic 629 | . . . . . . . . . . . . . . . . . . . . . . . . . . 34 . . . . . 487 . . . . . . . . . 108 . Impact . | . . . . . . . . . . . . . . . . . . . . . . . . . . . . . . . . . . . . . . . . . . . . Slashing . | . . . . . . . . . . . . . . . . . . . . . . . . . . . . . . . . . . . . . . . . . . . . Piercing . | . . . . . . . . . . . . . . . . . . . . . . . . . . . . . . . . . . . . . . . . . . . . Highest Corruption 27 | . . . . . . . . . . 2 2 . 6 . 3 . . . . 4 . . . 1 1 . 1 3 5 5 5 14 1 3 3 15 18 . . . . 2 27 Average Corruption 4 | . . . . . . . . . . 1 2 . 2 . 1 . . . . 4 . . . 1 1 . 1 2 4 5 5 5 1 2 3 9 17 . . . . 2 10 Corruption Purged 7 | . . . . . . . . . . . . . 7 . . . . . . . . . . . . . . . . . . . . . . . . . . . . . . Corruption Blocked 45 | . . . . . . . . . . . . . . . . . . . . . . . . . . . . . . . . . . . . . . 45 . . . . . Effects 293 | . . . . . . . . . . 15 11 . 10 . 5 . . . . 20 . . . . 10 . 11 6 22 6 2 23 . 18 2 49 20 . . . . 12 51 Message Errors 68 | . . . . . . . . . . 1 2 . 1 . 2 . . . . 5 . . . . 3 . 3 1 5 . . 5 . 6 . 11 4 . . . . 4 15 Matter Fused 78 | . . . . . . . . . . 5 2 . 3 . 2 . . . . 6 . . . . 2 . 3 . 4 . 2 4 . 5 2 13 7 . . . . 1 17 Heat Flow Errors 33 | . . . . . . . . . . 1 1 . . . . . . . . 3 . . . . . . 2 3 1 2 . 2 . 1 . 8 3 . . . . 3 3 Energy Discharges 28 | . . . . . . . . . . 1 2 . 1 . 1 . . . . 2 . . . . 1 . . 2 2 2 . 4 . . . 4 3 . . . . . 3 Parts Rejected 10 | . . . . . . . . . . 1 . . . . . . . . . 2 . . . . 1 . . . 2 . . 1 . . . 3 . . . . . . . Parts Fused 1 | . . . . . . . . . . . . . . . . . . . . . . . . . . . . . . 1 . . . . . . . . . . . . . Data Loss (minor) 31 | . . . . . . . . . . 3 3 . 1 . . . . . . 2 . . . . 1 . 2 . 2 1 . 2 . 4 . 3 . . . . . 2 5 Data Loss (major) 14 | . . . . . . . . . . . . . 3 . . . . . . . . . . . 2 . . . 2 . . 1 . 1 . 1 2 . . . . 1 1 Misfires 11 | . . . . . . . . . . 2 . . 1 . . . . . . . . . . . . . 1 . 2 . . 1 . 1 . 3 . . . . . . . Alerts 8 | . . . . . . . . . . . 1 . . . . . . . . . . . . . . . . . . . . . . . . 2 1 . . . . . 4 Weapon Failures 11 | . . . . . . . . . . 1 . . . . . . . . . . . . . . . . . . 2 . . 3 . . . 1 . . . . . 1 3 Overload Shots 7 | . . . . . . . 1 . . . 5 . . . . . . . . . 1 . . . . . . . . . . . . . . . . . . . . . . Overflow Damage 5263 | . 80 . 76 9 . 9 28 43 . 96 80 . 178 . 89 235 . . . 56 171 80 . 26 162 64 436 571 481 72 55 1139 17 343 . 392 23 . 65 . 37 34 116 Projectiles 939 | . . . 3 9 . . 24 9 . 88 37 . . . 75 33 . . . 7 . . . 26 . . 63 . 80 . 1 103 17 . . 100 23 . 65 . 37 24 115 Explosions 4324 | . 80 . 73 . . 9 4 34 . 8 43 . 178 . 14 202 . . . 49 171 80 . . 162 64 373 571 401 72 54 1036 . 343 . 292 . . . . . 10 1 Melee . | . . . . . . . . . . . . . . . . . . . . . . . . . . . . . . . . . . . . . . . . . . . . Knockbacks 143 | . . . . . . . . . . . . . . . . . . . . . . . . . . . . . . . . . . 7 . 66 . . 31 . 4 14 21 Impact . | . . . . . . . . . . . . . . . . . . . . . . . . . . . . . . . . . . . . . . . . . . . . Kinetic 139 | . . . . . . . . . . . . . . . . . . . . . . . . . . . . . . . . . . 7 . 64 . . 31 . 4 13 20 Secondary 4 | . . . . . . . . . . . . . . . . . . . . . . . . . . . . . . . . . . . . 2 . . . . . 1 1 Self-Inflicted Damage 4174 | . 96 . 138 . . 6 113 399 . 147 . . 93 . 25 . . . . . 284 101 . . 85 113 386 . 106 45 27 1085 . 198 . 605 . . 24 . . 18 80 Shots 107 | . 3 . 9 . . 1 6 19 . 10 . . 4 . 1 . . . . . 4 1 . . 1 2 4 . 2 1 1 18 . 2 . 15 . . 1 . . 1 1 Rammed 1 | . . . . . . . . . . . . . . . . . . . . . . . . . . . . . 1 . . . . . . . . . . . . . . Targets Rammed 1 | . . . . . . . . . . . . . . . . . . . . . . . . . . . . . 1 . . . . . . . . . . . . . . Kicked . | . . . . . . . . . . . . . . . . . . . . . . . . . . . . . . . . . . . . . . . . . . . . Crushed . | . . . . . . . . . . . . . . . . . . . . . . . . . . . . . . . . . . . . . . . . . . . . Highest Temperature 420 | . 11 70 198 18 . 9 32 327 108 306 108 . 170 . 323 1 6 42 . 172 42 78 230 202 218 32 361 322 307 172 204 318 162 369 . 155 142 . 171 . . 420 328 Average Temperature 76 | . 6 36 39 12 . 9 8 71 43 135 28 . 50 . 133 1 4 16 . 47 23 21 75 89 97 19 76 72 115 70 79 77 53 176 . 59 52 . 51 . . 132 122 Received Heat Transfer 4851 | . 72 . 318 . . 9 261 465 . 162 396 . 96 . 763 61 . 38 . 170 12 79 12 4 103 8 110 64 190 12 58 237 . 530 . 251 10 . 75 . . 8 277 Effects 13 | . . . . . . . . 3 . . . . . . . . . . . . . . . . . . 3 . . . . 3 . . . . . . . . . 4 . Shutdowns 1 | . . . . . . . . . . . . . . . . . . . . . . . . . . . 1 . . . . . . . . . . . . . . . . Energy Bleed 2 | . . . . . . . . . . . . . . . . . . . . . . . . . . . . . . . . . . . . . . . . . . 2 . Interference 8 | . . . . . . . . 3 . . . . . . . . . . . . . . . . . . . . . . . 3 . . . . . . . . . 2 . Matter Decay 1 | . . . . . . . . . . . . . . . . . . . . . . . . . . . 1 . . . . . . . . . . . . . . . . Damage (minor) 1 | . . . . . . . . . . . . . . . . . . . . . . . . . . . 1 . . . . . . . . . . . . . . . . Siege Activations 64 | . . . . . . . . . . . . . . . . . . . . . . . . . . . 9 . 5 . 1 5 . 3 . 19 3 . 8 . 4 4 3 Total Turns 2127 | . . . . . . . . . . . . . . . . . . . . . . . . . . . 203 . 84 . 16 88 . 116 . 829 63 . 327 . 82 241 78 Longest Duration 372 | . . . . . . . . . . . . . . . . . . . . . . . . . . . 45 . 43 . 16 36 . 76 . 372 42 . 128 . 47 161 34 Robots Corrupted 1 | . . . . . . . . . . . . . . . . . . . . . . . . . . . . . . . . 1 . . . . . . . . . . . Combat Hostiles . | . . . . . . . . . . . . . . . . . . . . . . . . . . . . . . . . . . . . . . . . . . . . Parts Fried . | . . . . . . . . . . . . . . . . . . . . . . . . . . . . . . . . . . . . . . . . . . . . Impact Corruptions . | . . . . . . . . . . . . . . . . . . . . . . . . . . . . . . . . . . . . . . . . . . . . Robots Melted 14 | . . . . . . . . . . . 1 . . . 2 . . 1 . 1 1 2 . . . . 3 . . . . . . 2 . . 1 . . . . . . Combat Hostiles 13 | . . . . . . . . . . . 1 . . . 2 . . 1 . 1 . 2 . . . . 3 . . . . . . 2 . . 1 . . . . . . Parts Melted 1 | . . . . . . . . . . . . . . . . . . . . . . 1 . . . . . . . . . . . . . . . . . . . . . Heat Transferred 29932 | . . . 1543 185 . . 1517 2072 . 1369 2529 . 777 . 4746 2450 50 1700 . 1500 550 1100 1200 500 770 . 2350 . 325 . 151 451 74 1283 . . 629 . . . . . 111 Parts Sabotaged 2 | . . . . . . . . . . . . . . . . . . . . . . . . . . . . . . . . 1 . . . 1 . . . . . . . Parts Stolen . | . . . . . . . . . . . . . . . . . . . . . . . . . . . . . . . . . . . . . . . . . . . . Parts Stripped . | . . . . . . . . . . . . . . . . . . . . . . . . . . . . . . . . . . . . . . . . . . . . Power Chain Reactions 5 | . . . . . . . . . . . . . . . . . . . . . . . . . . . . . 1 . 1 2 . 1 . . . . . . . . . Missiles Intercepted . | . . . . . . . . . . . . . . . . . . . . . . . . . . . . . . . . . . . . . . . . . . . . Alert | -11 -10 -10 -9 -9 -9 -8 -8 -8 -8 -8 -8 -7 -7 -7 -7 -6 -6 -6 -6 -5 -5 -5 -5 -5 -4 -4 -4 -4 -4 -4 -4 -4 -3 -3 -3 -3 -3 -2 -2 -2 -2 -1 -1 ------- Run | Jun Mat Min Mat Min Exi Min Mat Gar Mat Gar Mat Fac Gar Fac Gar Fac Low Low Dat Pro Fac Upp Upp War Pro Fac Gar Fac Ext Cet Arc Hub Res Gar Res Arm Lab Res Gar Res DSF Acc Com Peak Influence 6286 | . 1044 406 2466 1294 . 332 1096 2315 1181 1988 1794 1100 2582 1355 2170 1949 . . . . 1412 . . . . 566 3119 2997 2705 2059 1398 6286 3527 4456 2601 5561 . 120 2343 1317 1183 1277 1009 Initial 3300 | . . 406 157 1100 . . 51 714 1128 767 969 1100 770 1355 954 1138 . . . . 149 . . . . 238 399 1637 1369 1439 1100 489 3300 2502 2506 1365 . . 100 1317 987 709 816 Average 1693 | . 597 406 1455 1176 . 174 475 1680 1169 1569 1324 1100 2005 1355 1523 1503 . . . . 649 . . . . 426 1998 2316 2048 1711 1284 2907 3403 3749 2536 2656 . 54 1248 1317 1100 1036 771 Maximum Alert Level 5 | . 3 2 5 4 . 1 3 5 4 5 5 4 5 4 5 5 . . . . 4 . . . . 2 5 5 5 5 4 5 5 5 5 5 . . 5 4 4 4 3 Low Security (%) 4 | . 19 . 3 . . 64 10 . . . . . . . . . . . . . 13 . . . . . . . . . . . . . . . . 100 . . . . 21 Level 1 4 | . 15 . 2 . . 35 42 . . . . . . . . . . . . . 25 . . . . 41 . . . . . . . . . . . . 6 . . . . Level 2 5 | . 14 100 17 . . . 23 . . . . . . . . . . . . . 19 . . . . 58 3 . . . . 14 . . . . . . 14 . . . . Level 3 17 | . 50 . 17 . . . 23 22 . 6 6 . 11 . 17 . . . . . 25 . . . . . 18 . . . . 8 . . . . . . 26 . 38 56 78 Level 4 23 | . . . 12 100 . . . 14 100 38 87 100 11 100 32 54 . . . . 16 . . . . . 11 . 17 62 100 9 . . . 36 . . 19 100 61 43 . Level 5 37 | . . . 17 . . . . 63 . 55 1 . 76 . 50 45 . . . . . . . . . . 65 100 82 8 . 6 88 100 100 30 . . 32 . . . . High Security 7 | . . . 30 . . . . . . . 4 . . . . . . . . . . . . . . . . . . 28 . 61 11 . . 33 . . . . . . . Max Security . | . . . . . . . . . . . . . . . . . . . . . . . . . . . . . . . . . . . . . . . . . . . . Sterilizations 3 | . . . 1 . . . . . . . . . . . . . . . . . . . . . . . . . . . . . . . . 1 . . . . 1 . . Squads Dispatched 137 | . 6 . 9 1 . . 8 . . . 12 . . . . 3 . . . 1 6 . . . . 1 . 7 5 . . 22 6 . . 27 . 2 . . 1 8 12 Investigation 23 | . 3 . 3 1 . . 2 . . . 2 . . . . 1 . . . . 1 . . . . . . 2 . . . 1 3 . . . . 1 . . . . 3 Extermination 7 | . . . . . . . . . . . . . . . . . . . . . . . . . . . . . . . . . . . . 2 . . . . . 2 3 Reinforcement 38 | . 3 . 3 . . . 2 . . . 5 . . . . 1 . . . . 2 . . . . . . 3 . . . 2 3 . . 6 . 1 . . 1 3 3 Assault 64 | . . . 3 . . . 1 . . . 5 . . . . 1 . . . 1 1 . . . . 1 . 2 5 . . 19 . . . 19 . . . . . 3 3 Garrison 5 | . . . . . . . 3 . . . . . . . . . . . . . 2 . . . . . . . . . . . . . . . . . . . . . . Intercept . | . . . . . . . . . . . . . . . . . . . . . . . . . . . . . . . . . . . . . . . . . . . . Searches Triggered . | . . . . . . . . . . . . . . . . . . . . . . . . . . . . . . . . . . . . . . . . . . . . Data Miner Redirects 23 | . . . . . . . . . . . . . . . . . . . . . . . . . . 1 . 3 6 . . 2 . . . 4 . . . . . 3 4 Construction Impeded 6 | . . . . . . . 1 . . . 1 . . . . . . . . . . . . . . . . 1 . . . 1 1 . . . . . . . . 1 . Haulers Reinforced 4 | . . . . . . . . . . . . . . . . . . . . . . . . . . . . 2 . . . . 1 . . . . 1 . . . . . Active Scanning Responses . | . . . . . . . . . . . . . . . . . . . . . . . . . . . . . . . . . . . . . . . . . . . . Cargo Convoy Interrupts . | . . . . . . . . . . . . . . . . . . . . . . . . . . . . . . . . . . . . . . . . . . . . Stealth | -11 -10 -10 -9 -9 -9 -8 -8 -8 -8 -8 -8 -7 -7 -7 -7 -6 -6 -6 -6 -5 -5 -5 -5 -5 -4 -4 -4 -4 -4 -4 -4 -4 -3 -3 -3 -3 -3 -2 -2 -2 -2 -1 -1 --------- Run | Jun Mat Min Mat Min Exi Min Mat Gar Mat Gar Mat Fac Gar Fac Gar Fac Low Low Dat Pro Fac Upp Upp War Pro Fac Gar Fac Ext Cet Arc Hub Res Gar Res Arm Lab Res Gar Res DSF Acc Com Distress Signals 32 | . 2 . 3 . . . 3 . . . . . . . . . . . . . . . . 4 . . . 1 2 2 . 1 4 . . 1 . 3 . . . 1 5 Communications Jammed . | . . . . . . . . . . . . . . . . . . . . . . . . . . . . . . . . . . . . . . . . . . . . Distress Signals . | . . . . . . . . . . . . . . . . . . . . . . . . . . . . . . . . . . . . . . . . . . . . Times Spotted 917 | . 25 . 55 3 . 4 30 36 . 20 42 . 28 . 32 5 1 6 . 22 5 14 5 6 24 6 39 16 40 16 5 123 2 35 . 156 4 9 46 . 6 20 31 Peak Tracking Total 17 | . 8 . 7 2 . 2 4 5 . 7 6 . 7 . 7 3 1 3 . 7 1 9 4 4 10 5 5 6 9 10 2 17 1 8 . 17 3 5 6 . 3 8 9 Tactical Retreats 19 | . 2 . . . . . 1 . . . 1 . . . 1 . . . . 1 1 . . . . . 3 . 2 . . 2 . . . 3 . . 1 . . . 1 Traps | -11 -10 -10 -9 -9 -9 -8 -8 -8 -8 -8 -8 -7 -7 -7 -7 -6 -6 -6 -6 -5 -5 -5 -5 -5 -4 -4 -4 -4 -4 -4 -4 -4 -3 -3 -3 -3 -3 -2 -2 -2 -2 -1 -1 ------- Run | Jun Mat Min Mat Min Exi Min Mat Gar Mat Gar Mat Fac Gar Fac Gar Fac Low Low Dat Pro Fac Upp Upp War Pro Fac Gar Fac Ext Cet Arc Hub Res Gar Res Arm Lab Res Gar Res DSF Acc Com Traps Triggered 43 | . . . 1 . . . 2 3 . 3 . . 7 . 4 . . . . . 2 . . . . . 3 1 1 . . . . 7 . . . . 5 . . 4 . Indirectly . | . . . . . . . . . . . . . . . . . . . . . . . . . . . . . . . . . . . . . . . . . . . . Trap Hack Attempts . | . . . . . . . . . . . . . . . . . . . . . . . . . . . . . . . . . . . . . . . . . . . . Triggered . | . . . . . . . . . . . . . . . . . . . . . . . . . . . . . . . . . . . . . . . . . . . . Disarmed . | . . . . . . . . . . . . . . . . . . . . . . . . . . . . . . . . . . . . . . . . . . . . Reprogrammed . | . . . . . . . . . . . . . . . . . . . . . . . . . . . . . . . . . . . . . . . . . . . . Reused . | . . . . . . . . . . . . . . . . . . . . . . . . . . . . . . . . . . . . . . . . . . . . Traps Extracted . | . . . . . . . . . . . . . . . . . . . . . . . . . . . . . . . . . . . . . . . . . . . . Installed . | . . . . . . . . . . . . . . . . . . . . . . . . . . . . . . . . . . . . . . . . . . . . Triggered 15 | . . . . . . . . . . . . . . . . . . . . . . . . 13 . . . . 1 . . . . . . . . . 1 . . . . Machines | -11 -10 -10 -9 -9 -9 -8 -8 -8 -8 -8 -8 -7 -7 -7 -7 -6 -6 -6 -6 -5 -5 -5 -5 -5 -4 -4 -4 -4 -4 -4 -4 -4 -3 -3 -3 -3 -3 -2 -2 -2 -2 -1 -1 ---------- Run | Jun Mat Min Mat Min Exi Min Mat Gar Mat Gar Mat Fac Gar Fac Gar Fac Low Low Dat Pro Fac Upp Upp War Pro Fac Gar Fac Ext Cet Arc Hub Res Gar Res Arm Lab Res Gar Res DSF Acc Com Machines Disabled 375 | . 15 . 43 7 . 8 7 11 3 8 12 . 12 . 8 24 . . . 1 22 2 . 4 7 3 16 11 9 1 2 54 7 13 3 24 5 7 12 . . 5 9 Max in Single Turn 14 | . 2 . 4 4 . 1 3 2 1 1 2 . 2 . 1 12 . . . . 4 1 . 2 5 3 2 4 2 1 1 14 1 2 1 2 1 1 2 . . 1 2 Garrison Access 4 | . . . . . . . . . . . . . . . . 1 . . . . 1 . . . . . . . . . . 1 . . . . . 1 . . . . . Garrison Relay 33 | . . . . . . . . 7 . 6 . . 4 . 6 . . . . . . . . . . . 4 . . . . . . 3 . . . . 3 . . . . Phase Generator 5 | . . . . . . . . 1 . . . . 1 . . . . . . . . . . . . . 1 . . . . . . 1 . . . . 1 . . . . Network Hub 2 | . . . . . . . . . . . . . . . . . . . . . . . . . . . . . . . . 2 . . . . . . . . . . . Energy Cycler 2 | . . . . . . . . . . . . . . . . . . . . . . . . . . . . . 2 . . . . . . . . . . . . . . Machines Repaired 5 | . 2 . 1 . . . 1 . . . . . . . . . . . . . . . . . . . . . . . . . 1 . . . . . . . . . . Machines Sabotaged . | . . . . . . . . . . . . . . . . . . . . . . . . . . . . . . . . . . . . . . . . . . . . Overloaded Fab Kills . | . . . . . . . . . . . . . . . . . . . . . . . . . . . . . . . . . . . . . . . . . . . . Hacking | -11 -10 -10 -9 -9 -9 -8 -8 -8 -8 -8 -8 -7 -7 -7 -7 -6 -6 -6 -6 -5 -5 -5 -5 -5 -4 -4 -4 -4 -4 -4 -4 -4 -3 -3 -3 -3 -3 -2 -2 -2 -2 -1 -1 --------- Run | Jun Mat Min Mat Min Exi Min Mat Gar Mat Gar Mat Fac Gar Fac Gar Fac Low Low Dat Pro Fac Upp Upp War Pro Fac Gar Fac Ext Cet Arc Hub Res Gar Res Arm Lab Res Gar Res DSF Acc Com Machines Accessed 62 | . 3 . 3 1 . . 7 5 1 2 2 1 3 1 1 1 1 . 2 . 2 . . 3 . 1 3 2 . 1 . 1 2 2 . . 2 3 2 1 . . 3 Terminals 41 | . 3 . 2 . . . 5 5 . 2 . . 3 . 1 1 . . . . 2 . . . . . 3 2 . 1 . 1 1 2 . . . 1 2 1 . . 3 Fabricators . | . . . . . . . . . . . . . . . . . . . . . . . . . . . . . . . . . . . . . . . . . . . . Repair Stations . | . . . . . . . . . . . . . . . . . . . . . . . . . . . . . . . . . . . . . . . . . . . . Recycling Units . | . . . . . . . . . . . . . . . . . . . . . . . . . . . . . . . . . . . . . . . . . . . . Scanalyzers 4 | . . . 1 . . . 1 . . . 2 . . . . . . . . . . . . . . . . . . . . . . . . . . . . . . . . Garrison Access 8 | . . . . . . . 1 . 1 . . 1 . 1 . . . . . . . . . . . 1 . . . . . . 1 . . . . 2 . . . . . Total Hacks 177 | . 8 . 8 1 . . 15 8 1 2 2 1 5 1 3 4 1 . 23 . 6 . . 7 . 1 6 5 . 2 . 4 6 6 . . 20 6 6 1 . . 18 Successful 109 | . 3 . 4 1 . . 10 4 1 2 2 1 3 1 1 1 1 . 23 . 2 . . 7 . 1 2 1 . . . 2 4 4 . . 20 2 3 1 . . 2 Failed 68 | . 5 . 4 . . . 5 4 . . . . 2 . 2 3 . . . . 4 . . . . . 4 4 . 2 . 2 2 2 . . . 4 3 . . . 16 Catastrophic 24 | . . . . . . . . 1 . . . . 1 . . 1 . . . . 2 . . . . . 3 2 . 1 . . . 1 . . . 1 2 . . . 9 Database Lockouts . | . . . . . . . . . . . . . . . . . . . . . . . . . . . . . . . . . . . . . . . . . . . . Manual 44 | . 8 . 8 . 1 . 8 . . . 2 . . . . 4 . . . . 1 . . 1 . . . . . 1 . 1 3 3 . . . . 1 . . . 2 Terminals 110 | . 8 . 7 . . . 13 8 . 2 . . 5 . 3 4 . . . . 6 . . . . . 6 5 . 2 . 4 5 6 . . . 1 6 1 . . 18 Fabricators . | . . . . . . . . . . . . . . . . . . . . . . . . . . . . . . . . . . . . . . . . . . . . Repair Stations . | . . . . . . . . . . . . . . . . . . . . . . . . . . . . . . . . . . . . . . . . . . . . Recycling Units . | . . . . . . . . . . . . . . . . . . . . . . . . . . . . . . . . . . . . . . . . . . . . Scanalyzers 4 | . . . 1 . . . 1 . . . 2 . . . . . . . . . . . . . . . . . . . . . . . . . . . . . . . . Garrison Access 11 | . . . . . . . 1 . 1 . . 1 . 1 . . . . . . . . . . . 1 . . . . . . 1 . . . . 5 . . . . . Terminal Hacks 86 | . . . . 1 . . 5 4 . 2 . . 3 . 1 1 1 . 23 . 2 . . 7 . . 2 1 . . . 2 2 3 . . 20 1 2 1 . . 2 Record 21 | . . . . . . . . . . . . . . . . . . . . . . . . . . . . . . . . 1 . . . . 20 . . . . . . Part Schematic 13 | . . . . . . . . . . . . . . . . . . . 13 . . . . . . . . . . . . . . . . . . . . . . . . Robot Schematic 7 | . . . . . . . . . . . . . . . . . . . 7 . . . . . . . . . . . . . . . . . . . . . . . . Robot Analysis 1 | . . . . . . . 1 . . . . . . . . . . . . . . . . . . . . . . . . . . . . . . . . . . . . Prototype ID Bank 10 | . . . . . . . 1 . . . . . . . . . . . 3 . 1 . . 5 . . . . . . . . . . . . . . . . . . . Open Door 7 | . . . . 1 . . . 1 . . . . 1 . 1 . 1 . . . . . . 2 . . . . . . . . . . . . . . . . . . . Open DSF 1 | . . . . . . . . . . . . . . . . . . . . . . . . . . . . . . . . . . . . . . . . 1 . . . Branch Access Points 3 | . . . . . . . . . . . . . . . . 1 . . . . 1 . . . . . . 1 . . . . . . . . . . . . . . . Emergency Access Points 8 | . . . . . . . . 1 . 1 . . 1 . . . . . . . . . . . . . 1 . . . . . 1 1 . . . . 1 . . . 1 Locate Traps 2 | . . . . . . . . . . . . . . . . . . . . . . . . . . . . . . . . 1 . 1 . . . . . . . . . Zone Layout 5 | . . . . . . . 3 . . . . . . . . . . . . . . . . . . . . . . . . . 1 . . . . 1 . . . . . Garrison Registry 3 | . . . . . . . . 1 . 1 . . . . . . . . . . . . . . . . 1 . . . . . . . . . . . . . . . . Patrol Navigation 3 | . . . . . . . . 1 . . . . 1 . . . . . . . . . . . . . . . . . . . . 1 . . . . . . . . . Security Stations 1 | . . . . . . . . . . . . . . . . . . . . . . . . . . . . . . . . . . . . . . . 1 . . . . Disengage Seal 1 | . . . . . . . . . . . . . . . . . . . . . . . . . . . . . . . . . . . . . . . . . . . 1 Fabricator Hacks . | . . . . . . . . . . . . . . . . . . . . . . . . . . . . . . . . . . . . . . . . . . . . Repair Station Hacks . | . . . . . . . . . . . . . . . . . . . . . . . . . . . . . . . . . . . . . . . . . . . . Recycling Unit Hacks . | . . . . . . . . . . . . . . . . . . . . . . . . . . . . . . . . . . . . . . . . . . . . Scanalyzer . | . . . . . . . . . . . . . . . . . . . . . . . . . . . . . . . . . . . . . . . . . . . . Garrison Access Hacks 7 | . . . . . . . 1 . 1 . . 1 . 1 . . . . . . . . . . . 1 . . . . . . 1 . . . . 1 . . . . . Unlock Access 7 | . . . . . . . 1 . 1 . . 1 . 1 . . . . . . . . . . . 1 . . . . . . 1 . . . . 1 . . . . . Unauthorized Hacks 16 | . 3 . 4 . . . 4 . . . 2 . . . . . . . . . . . . . . . . . . . . . 1 1 . . . . 1 . . . . Terminals 12 | . 3 . 3 . . . 3 . . . . . . . . . . . . . . . . . . . . . . . . . 1 1 . . . . 1 . . . . Botnet 4 | . . . 1 . . . 2 . . . . . . . . . . . . . . . . . . . . . . . . . . 1 . . . . . . . . . Sabotage 7 | . 3 . 2 . . . 1 . . . . . . . . . . . . . . . . . . . . . . . . . 1 . . . . . . . . . . Override 1 | . . . . . . . . . . . . . . . . . . . . . . . . . . . . . . . . . . . . . . . 1 . . . . Fabricators . | . . . . . . . . . . . . . . . . . . . . . . . . . . . . . . . . . . . . . . . . . . . . Repair Stations . | . . . . . . . . . . . . . . . . . . . . . . . . . . . . . . . . . . . . . . . . . . . . Recycling Units . | . . . . . . . . . . . . . . . . . . . . . . . . . . . . . . . . . . . . . . . . . . . . Scanalyzers 4 | . . . 1 . . . 1 . . . 2 . . . . . . . . . . . . . . . . . . . . . . . . . . . . . . . . Extract 4 | . . . 1 . . . 1 . . . 2 . . . . . . . . . . . . . . . . . . . . . . . . . . . . . . . . Garrison Access . | . . . . . . . . . . . . . . . . . . . . . . . . . . . . . . . . . . . . . . . . . . . . Data Cores Recovered 1 | . . . . . . . . . . . . . . . . . . . . . 1 . . . . . . . . . . . . . . . . . . . . . . Used . | . . . . . . . . . . . . . . . . . . . . . . . . . . . . . . . . . . . . . . . . . . . . Hacking Detections 32 | . 2 . 1 . . . 3 3 1 1 . . 2 1 1 1 . . . . 2 . . . . 1 1 2 . 2 . 1 1 . . . . 2 1 . . . 3 Full Trace Events 13 | . . . . . . . 1 1 . . . . 1 . 1 1 . . . . 1 . . . . . 1 2 . . . 1 . . . . . 1 . . . . 2 Feedback Events 3 | . . . . . . . . . . . . . . . 1 . . . . . . . . . . . . 1 . . . . . . . . . . . . . . 1 Corruption 3 | . . . . . . . . . . . . . . . 1 . . . . . . . . . . . . 1 . . . . . . . . . . . . . . 1 Feedback Blocked . | . . . . . . . . . . . . . . . . . . . . . . . . . . . . . . . . . . . . . . . . . . . . Robot Schematics Acquired 7 | . . . . . . . . . . . . . . . . . . . 7 . . . . . . . . . . . . . . . . . . . . . . . . Robots Built . | . . . . . . . . . . . . . . . . . . . . . . . . . . . . . . . . . . . . . . . . . . . . Authchips . | . . . . . . . . . . . . . . . . . . . . . . . . . . . . . . . . . . . . . . . . . . . . Time . | . . . . . . . . . . . . . . . . . . . . . . . . . . . . . . . . . . . . . . . . . . . . Total Robot Build Rating . | . . . . . . . . . . . . . . . . . . . . . . . . . . . . . . . . . . . . . . . . . . . . Part Schematics Acquired 23 | . . . 3 . . . 1 . . . 6 . . . . . . . 13 . . . . . . . . . . . . . . . . . . . . . . . . Parts Built . | . . . . . . . . . . . . . . . . . . . . . . . . . . . . . . . . . . . . . . . . . . . . Authchips . | . . . . . . . . . . . . . . . . . . . . . . . . . . . . . . . . . . . . . . . . . . . . Time . | . . . . . . . . . . . . . . . . . . . . . . . . . . . . . . . . . . . . . . . . . . . . Total Part Build Rating . | . . . . . . . . . . . . . . . . . . . . . . . . . . . . . . . . . . . . . . . . . . . . Parts Repaired . | . . . . . . . . . . . . . . . . . . . . . . . . . . . . . . . . . . . . . . . . . . . . Time . | . . . . . . . . . . . . . . . . . . . . . . . . . . . . . . . . . . . . . . . . . . . . Parts Recycled . | . . . . . . . . . . . . . . . . . . . . . . . . . . . . . . . . . . . . . . . . . . . . Recycled Matter . | . . . . . . . . . . . . . . . . . . . . . . . . . . . . . . . . . . . . . . . . . . . . Retrieved Matter . | . . . . . . . . . . . . . . . . . . . . . . . . . . . . . . . . . . . . . . . . . . . . Retrieved Components . | . . . . . . . . . . . . . . . . . . . . . . . . . . . . . . . . . . . . . . . . . . . . Parts Scanalyzed . | . . . . . . . . . . . . . . . . . . . . . . . . . . . . . . . . . . . . . . . . . . . . Part Schematics Acquired . | . . . . . . . . . . . . . . . . . . . . . . . . . . . . . . . . . . . . . . . . . . . . Parts Damaged . | . . . . . . . . . . . . . . . . . . . . . . . . . . . . . . . . . . . . . . . . . . . . Bothacking | -11 -10 -10 -9 -9 -9 -8 -8 -8 -8 -8 -8 -7 -7 -7 -7 -6 -6 -6 -6 -5 -5 -5 -5 -5 -4 -4 -4 -4 -4 -4 -4 -4 -3 -3 -3 -3 -3 -2 -2 -2 -2 -1 -1 ------------ Run | Jun Mat Min Mat Min Exi Min Mat Gar Mat Gar Mat Fac Gar Fac Gar Fac Low Low Dat Pro Fac Upp Upp War Pro Fac Gar Fac Ext Cet Arc Hub Res Gar Res Arm Lab Res Gar Res DSF Acc Com Used RIF Installer . | . . . . . . . . . . . . . . . . . . . . . . . . . . . . . . . . . . . . . . . . . . . . Robots Hacked . | . . . . . . . . . . . . . . . . . . . . . . . . . . . . . . . . . . . . . . . . . . . . Non-combat . | . . . . . . . . . . . . . . . . . . . . . . . . . . . . . . . . . . . . . . . . . . . . Combat . | . . . . . . . . . . . . . . . . . . . . . . . . . . . . . . . . . . . . . . . . . . . . Robot Hacks Applied . | . . . . . . . . . . . . . . . . . . . . . . . . . . . . . . . . . . . . . . . . . . . . Relay Couplers Released 141 | . . . . . . . . 27 . 24 . . 14 . 27 3 . . . . 2 . . . . . 19 . . . . 2 . 11 . . . 1 11 . . . . Machine Destruction 138 | . . . . . . . . 27 . 24 . . 14 . 24 3 . . . . 2 . . . . . 19 . . . . 2 . 11 . . . 1 11 . . . . Programmers 3 | . . . . . . . . . . . . . . . 3 . . . . . . . . . . . . . . . . . . . . . . . . . . . . Fabnet Peak Effective % . | . . . . . . . . . . . . . . . . . . . . . . . . . . . . . . . . . . . . . . . . . . . . Robots Rewired 28 | . . . . . . . . 5 . 3 . . . . . . . . . 2 . . . 5 . . 2 . 3 . . . . 3 . 1 . . 4 . . . . Allies Hacked 2 | . . . . . . . . . . . . . . . . . . . . . . . . . 1 . . . 1 . . . . . . . . . . . . . . Hacks Repelled 1 | . . . . . . . . . . . . . . . . . . . . . . . . . . . . . . . . . . . . . . . . . . . 1 Allies | -11 -10 -10 -9 -9 -9 -8 -8 -8 -8 -8 -8 -7 -7 -7 -7 -6 -6 -6 -6 -5 -5 -5 -5 -5 -4 -4 -4 -4 -4 -4 -4 -4 -3 -3 -3 -3 -3 -2 -2 -2 -2 -1 -1 -------- Run | Jun Mat Min Mat Min Exi Min Mat Gar Mat Gar Mat Fac Gar Fac Gar Fac Low Low Dat Pro Fac Upp Upp War Pro Fac Gar Fac Ext Cet Arc Hub Res Gar Res Arm Lab Res Gar Res DSF Acc Com Total Allies 42 | . . . . 1 . . . 7 . 3 . . 2 . 2 . . . . 3 . . . 5 . . 2 . 4 5 . . . 3 . 1 . . 4 . . . . Largest Group 6 | . . . . 1 1 . . 3 . 3 . . 2 . 2 . . . . 2 . . . 5 5 . 2 2 3 6 5 4 . 2 2 2 . . 4 . . . . Highest-Rated Group 608 | . . . . 31 31 . . 85 . 54 . . 59 . 51 . . . . 96 . . . 250 250 . 97 97 243 608 512 370 . 75 75 75 . . 356 . . . . Highest-Rated Ally 159 | . . . . 31 31 . . 39 . 18 . . 39 . 31 . . . . 96 . . . 65 65 . 51 51 159 143 135 96 . 56 46 56 . . 89 . . . . Total Orders 6 | . . . . . . . . 1 . . . . . . . . . . . . . . . . . . . . . . 3 . . . . 1 . . 1 . . . . STAY 2 | . . . . . . . . 1 . . . . . . . . . . . . . . . . . . . . . . 1 . . . . . . . . . . . . ROAM 2 | . . . . . . . . . . . . . . . . . . . . . . . . . . . . . . . . . . . . 1 . . 1 . . . . FOLLOW 2 | . . . . . . . . . . . . . . . . . . . . . . . . . . . . . . . 2 . . . . . . . . . . . . Ally Attacks 361 | . . . . . . . . 26 . 9 . . 16 . 14 . . . . 17 . . . . 10 . 3 2 64 16 12 63 . 2 . 9 . . 98 . . . . Total Damage 11351 | . . . . . . . . 583 . 266 . . 250 . 229 . . . . 655 . . . . 264 . 94 41 2252 464 612 3146 . 31 . 209 . . 2255 . . . . Kills 77 | . . . . . . . . 8 . 1 . . 2 . 2 . . . . 8 . . . . 1 . 2 . 13 4 2 14 . . . 2 . . 18 . . . . Allies Corrupted 3 | . . . . . . . . . . . . . . . . . . . . 1 . . . . . . . . 1 . . . . . . . . . 1 . . . . Allies Melted 2 | . . . . . . . . . . . . . . . 1 . . . . . . . . . . . . . . . . . . . . . . . . . . . 1 Intel | -11 -10 -10 -9 -9 -9 -8 -8 -8 -8 -8 -8 -7 -7 -7 -7 -6 -6 -6 -6 -5 -5 -5 -5 -5 -4 -4 -4 -4 -4 -4 -4 -4 -3 -3 -3 -3 -3 -2 -2 -2 -2 -1 -1 ------- Run | Jun Mat Min Mat Min Exi Min Mat Gar Mat Gar Mat Fac Gar Fac Gar Fac Low Low Dat Pro Fac Upp Upp War Pro Fac Gar Fac Ext Cet Arc Hub Res Gar Res Arm Lab Res Gar Res DSF Acc Com Robot Analysis Total 1 | . . . . . . . 1 . . . . . . . . . . . . . . . . . . . . . . . . . . . . . . . . . . . . Derelict Logs Recovered . | . . . . . . . . . . . . . . . . . . . . . . . . . . . . . . . . . . . . . . . . . . . . Drone Launches . | . . . . . . . . . . . . . . . . . . . . . . . . . . . . . . . . . . . . . . . . . . . . Drone Recoveries . | . . . . . . . . . . . . . . . . . . . . . . . . . . . . . . . . . . . . . . . . . . . . Exploration | -11 -10 -10 -9 -9 -9 -8 -8 -8 -8 -8 -8 -7 -7 -7 -7 -6 -6 -6 -6 -5 -5 -5 -5 -5 -4 -4 -4 -4 -4 -4 -4 -4 -3 -3 -3 -3 -3 -2 -2 -2 -2 -1 -1 ------------- Run | Jun Mat Min Mat Min Exi Min Mat Gar Mat Gar Mat Fac Gar Fac Gar Fac Low Low Dat Pro Fac Upp Upp War Pro Fac Gar Fac Ext Cet Arc Hub Res Gar Res Arm Lab Res Gar Res DSF Acc Com Turns Passed 30810 | . 232 40 1807 342 175 496 990 1717 77 1340 1347 36 1368 30 1252 311 327 467 95 693 516 552 601 921 782 284 1671 422 924 277 148 868 506 1470 118 1858 523 319 2036 117 276 1082 1397 Spaces Moved 14202 | 1 289 36 1063 279 195 406 523 1010 46 792 467 31 832 25 593 194 240 291 74 255 263 333 384 597 383 122 560 159 273 130 40 272 254 658 50 285 150 161 561 43 55 300 527 Core 457 | 1 289 36 77 . . . . . . . . . . . . . . . . . . . . . . . . . . . . . . . . . . . . . . . 54 Treads 2960 | . . . . . . . . . . . . . . . . . . . . . . . . . 191 122 560 159 273 2 2 154 . 55 . 284 150 . 497 43 55 91 322 Legs . | . . . . . . . . . . . . . . . . . . . . . . . . . . . . . . . . . . . . . . . . . . . . Wheels 10785 | . . . 986 279 195 406 523 1010 46 792 467 31 832 25 593 194 240 291 74 255 263 333 384 597 192 . . . . 128 38 118 254 603 50 1 . 161 64 . . 209 151 Hover . | . . . . . . . . . . . . . . . . . . . . . . . . . . . . . . . . . . . . . . . . . . . . Flight . | . . . . . . . . . . . . . . . . . . . . . . . . . . . . . . . . . . . . . . . . . . . . Fastest Speed 50 | 50 50 50 90 90 90 90 120 115 115 115 115 115 115 115 100 115 115 130 130 130 130 145 145 145 145 225 225 225 225 170 170 150 150 130 150 150 270 150 150 270 270 170 50 Average Speed 152 | 50 50 104 108 90 90 103 128 115 115 129 126 115 115 115 119 115 128 130 130 130 138 145 145 145 184 225 225 225 250 172 172 199 169 146 150 269 270 176 256 270 270 227 213 Slowest Speed 360 | 50 50 200 250 90 90 105 165 130 115 130 130 115 115 115 130 115 130 130 130 130 145 145 145 145 225 225 225 225 305 305 225 225 170 225 150 270 270 270 270 270 270 360 270 Overloaded Moves . | . . . . . . . . . . . . . . . . . . . . . . . . . . . . . . . . . . . . . . . . . . . . Propulsion Burnouts . | . . . . . . . . . . . . . . . . . . . . . . . . . . . . . . . . . . . . . . . . . . . . Robots Hopped . | . . . . . . . . . . . . . . . . . . . . . . . . . . . . . . . . . . . . . . . . . . . . Cave-ins Triggered 1 | . . . . . . . . . . . . . 1 . . . . . . . . . . . . . . . . . . . . . . . . . . . . . . Teleports 1 | . . . . . . . . . . . . . . . . . . . . . . . . . . . . . . . . . . . . . . . . . . . 1 Exploration Rate (%) 48 | 2 61 19 95 71 60 90 61 87 10 79 33 2 94 1 74 10 46 56 68 41 10 57 62 91 67 5 83 9 60 60 66 52 12 73 3 43 95 8 89 2 81 11 29 Regions Visited 43 Branch Regions 19 Pre-discovered Areas 1 | . . . . . . . . . . . . . . . . . 1 . . . . . . . . . . . . . . . . . . . . . . . . . . Known Exits Taken 17 | . . . 1 1 1 1 1 . 1 . . 1 . 1 . 1 . . . . 1 . . . . 1 . 1 . . . 1 1 . . . . 1 . 1 . 1 . Unknown Exits Taken 18 | 1 1 1 . . . . . . . . 1 . . . . . 1 1 1 1 . 1 1 1 1 . . . 1 1 1 . . . 1 1 1 . . . . . . Scrap Searched . | . . . . . . . . . . . . . . . . . . . . . . . . . . . . . . . . . . . . . . . . . . . . Spaces Dug 327 | . . . 26 . . . 22 . 4 . 16 . 2 . . 6 2 8 . 6 6 . 6 . . . . . . . . 41 65 4 26 45 1 5 . . . 16 20 Terrain Destroyed 10017 | . 176 . 698 38 . 121 521 93 11 156 194 . 743 . 128 112 4 11 . 96 573 157 10 13 222 90 991 490 373 252 21 1522 70 431 27 1276 48 5 201 . 2 61 80 Melee . | . . . . . . . . . . . . . . . . . . . . . . . . . . . . . . . . . . . . . . . . . . . . Projectile 404 | . . . 16 5 . . 26 1 11 . 33 . . . 9 17 4 11 . 10 8 5 10 . 5 . 7 1 9 1 6 9 12 27 27 60 1 5 5 . 2 43 18 AOE 9613 | . 176 . 682 33 . 121 495 92 . 156 161 . 743 . 119 95 . . . 86 565 152 . 13 217 90 984 489 364 251 15 1513 58 404 . 1216 47 . 196 . . 18 62 Terrain Rammed . | . . . . . . . . . . . . . . . . . . . . . . . . . . . . . . . . . . . . . . . . . . . . Walls Destroyed . | . . . . . . . . . . . . . . . . . . . . . . . . . . . . . . . . . . . . . . . . . . . . Machines Disabled . | . . . . . . . . . . . . . . . . . . . . . . . . . . . . . . . . . . . . . . . . . . . . Actions | -11 -10 -10 -9 -9 -9 -8 -8 -8 -8 -8 -8 -7 -7 -7 -7 -6 -6 -6 -6 -5 -5 -5 -5 -5 -4 -4 -4 -4 -4 -4 -4 -4 -3 -3 -3 -3 -3 -2 -2 -2 -2 -1 -1 --------- Run | Jun Mat Min Mat Min Exi Min Mat Gar Mat Gar Mat Fac Gar Fac Gar Fac Low Low Dat Pro Fac Upp Upp War Pro Fac Gar Fac Ext Cet Arc Hub Res Gar Res Arm Lab Res Gar Res DSF Acc Com Total 21215 | . 340 38 1530 356 194 465 711 1411 54 980 1089 31 1212 26 982 224 254 334 73 567 355 366 401 637 437 130 891 197 432 174 97 539 307 1047 82 1207 223 184 1073 43 155 627 740 Wait 4293 | . 17 . 335 67 . 35 106 185 . 70 530 . 237 . 268 1 5 20 . 257 42 9 . 21 21 3 226 2 49 9 32 74 28 191 14 665 38 1 316 . 72 245 102 Move 14162 | . 288 35 1062 278 194 405 523 1009 46 791 466 31 830 25 590 193 239 290 73 254 262 332 383 596 382 122 558 158 272 129 39 271 253 657 49 284 149 161 560 43 54 299 527 Hop . | . . . . . . . . . . . . . . . . . . . . . . . . . . . . . . . . . . . . . . . . . . . . Pick Up 47 | . . . . . . 1 . 1 . 1 1 . . . 1 . 2 . . 2 . . . . 2 . 1 . 2 1 3 4 1 6 . 8 2 3 2 . . 3 . Fast Attach 28 | . . . . . . . 2 1 . 1 . . 1 . . . 1 . . 2 1 . . . 2 . . . 3 . . 1 1 1 . 8 . 1 1 . . 1 . Attach 88 | . . . 5 . . 2 . 2 . 1 2 . . . 8 . 1 . . 1 1 . . 1 . . 1 . 5 2 3 9 . 8 . 18 2 1 1 . . 5 9 Detach 72 | . . 1 7 . . 3 . 1 . . 4 . 5 . 4 1 1 1 . . . 1 . . . . 2 . 4 2 . 5 1 5 . 12 . . . . . 4 8 Swap 128 | . . . 11 2 . 3 5 12 . 3 7 . 7 . 6 . . . . 2 1 5 . 2 4 1 14 3 7 8 . 16 3 4 . 1 1 . . . . . . Drop 118 | . . . . 2 . 3 4 7 . 2 5 . 4 1 5 . 2 . . 2 1 . 1 . 6 2 2 1 6 2 3 6 6 12 . 13 4 4 4 . . 8 . Fire 1846 | . 35 2 110 7 . 13 71 79 8 66 74 . 71 . 84 29 3 23 . 26 39 19 17 17 20 2 75 33 73 21 17 153 14 121 19 191 27 13 89 . 29 62 94 Melee . | . . . . . . . . . . . . . . . . . . . . . . . . . . . . . . . . . . . . . . . . . . . . Ram . | . . . . . . . . . . . . . . . . . . . . . . . . . . . . . . . . . . . . . . . . . . . . Kick . | . . . . . . . . . . . . . . . . . . . . . . . . . . . . . . . . . . . . . . . . . . . . Crush 1 | . . . . . . . . . . . . . . . . . . . . . . . . . . . . . 1 . . . . . . . . . . . . . . Escape Stasis 161 | . . . . . . . . 14 . 16 . . 57 . 16 . . . . . 8 . . . . . 4 . . . . . . 32 . 6 . . 8 . . . . Rewire 271 | . . . . . . . . 100 . 29 . . . . . . . . . 21 . . . . . . 8 . 10 . . . . 10 . 1 . . 92 . . . . Trap . | . . . . . . . . . . . . . . . . . . . . . . . . . . . . . . . . . . . . . . . . . . . . Miscellaneous . | . . . . . . . . . . . . . . . . . . . . . . . . . . . . . . . . . . . . . . . . . . . . Route ------- -11/Junkyard -10/Materials (discovered 2 exits: *Mat / [*Min]) -10/Mines -9/Materials (discovered 4 exits: *Mat x3 / *Min) -9/Mines (discovered 2 exits: *Exi / [*Zio]) -9/Exiles -8/Mines -8/Materials (discovered 3 exits: *Fac x2 / Gar) -8/Garrison (discovered 4 exits: *Mat x4) -8/Materials -8/Garrison (discovered 3 exits: *Mat x3) -8/Materials -7/Factory -7/Garrison (discovered 3 exits: *Fac x3) -7/Factory -7/Garrison (discovered 3 exits: *Fac x3) -6/Factory (discovered 3 exits: *Fac / *Low x2) -6/Lower Caves -6/Lower Caves -6/Data Miner -5/Proximity Caves -5/Factory (discovered 2 exits: *Upp x2) -5/Upper Caves -5/Upper Caves (discovered 2 exits: *Fac / *War) -5/Warlord -4/Proximity Caves -4/Factory -4/Garrison (discovered 3 exits: *Fac x3) -4/Factory (discovered 4 exits: Upp x2 / *Ext x2) -4/Extension (discovered 3 exits: *Res x2 / *Cet) -4/Cetus (discovered 2 exits: *Res / [*Arc]) -4/Archives -4/Hub_04(d) (discovered 2 exits: *Res x2) -3/Research -3/Garrison (discovered 3 exits: [*Res x3]) -3/Research -3/Armory -3/Lab -2/Research -2/Garrison (discovered 3 exits: *Res x3) -2/Research -2/DSF -1/Access -1/Command (discovered 2 exits: *Sur x2) History --------- Turn | Location | Event 1 | -11/Junkyard | Discovered new exit (range 0) 1 | -11/Junkyard | Entered Materials 50 | -10/Materials | Discovered new exit (range 6) 148 | -10/Materials | Destroyed 9 combat bots 163 | -10/Materials | Discovered new exit (range 14) 177 | -10/Materials | Core integrity fell below 50% 233 | -10/Materials | Entered Mines 237 | -10/Mines | Met a Derelict bent on vengeance 244 | -10/Mines | Discovered new exit (range 16) 246 | -10/Mines | Excavation squad dispatched 246 | -10/Mines | A large section of the Mines collapsed 273 | -10/Mines | Entered Materials 273 | -9/Materials | Evolved 2 slots: Utility x2 311 | -9/Materials | Build established: Mutant 593 | -9/Materials | Discovered new exit (range 4) 673 | -9/Materials | First assault squad dispatched 812 | -9/Materials | Destroyed 7 combat bots 1082 | -9/Materials | Discovered new exit (range 3) 1153 | -9/Materials | Destroyed 9 combat bots 1217 | -9/Materials | Discovered new exit (range 6) 1527 | -9/Materials | High security lockdown imminent 1537 | -9/Materials | Sterilization system engaged 1537 | -9/Materials | Non-combat units ordered to evacuate 1637 | -9/Materials | Combat units ordered to evacuate 1837 | -9/Materials | Ambient heat levels rising (+10) 1924 | -9/Materials | Identified exit to Materials 1987 | -9/Materials | Ambient heat levels rising (+10) 2061 | -9/Materials | Discovered new exit (range 6) 2079 | -9/Materials | Identified exit to Mines 2080 | -9/Materials | Entered Mines 2081 | -9/Mines | Assembled infested the area 2241 | -9/Mines | Met a Derelict shopkeep closing up shop 2275 | -9/Mines | Joined a pair of Derelicts in attacking an 0b10 outpost 2333 | -9/Mines | Received a Mining Laser from a helpful Derelict 2400 | -9/Mines | A Derelict revealed a hidden shortcut to a safe place 2412 | -9/Mines | Discovered new exit (range 5) 2417 | -9/Mines | Identified exit to Exiles 2422 | -9/Mines | Entered Exiles 2422 | -9/Exiles | Accompanied by 1 ally 2445 | -9/Exiles | Met 8R-AWN 2459 | -9/Exiles | Met EX-HEX 2486 | -9/Exiles | Met EX-BIN 2496 | -9/Exiles | Aligned with FarCom system 2497 | -9/Exiles | Given EX-Vault access code 2518 | -9/Exiles | Opened EX-Vault 2532 | -9/Exiles | Warned to stay clear of 0b10 Research branches 2557 | -9/Exiles | Met EX-DEC 2587 | -9/Exiles | Discovered new exit (range 14) 2596 | -9/Exiles | Identified exit to Mines 2597 | -9/Exiles | Entered Mines 2970 | -8/Mines | Found Exp. Powered Armor 3085 | -8/Mines | Discovered exit to Materials (range 8) 3093 | -8/Mines | Entered Materials 3093 | -8/Materials | Evolved 2 slots: Power x1, Utility x1 3590 | -8/Materials | Discovered new exit (range 16) 3810 | -8/Materials | Found Rocket Array 3820 | -8/Materials | Garrison activated, responded to threat 3893 | -8/Materials | First assault squad dispatched 3897 | -8/Materials | Found Rocket Array 3971 | -8/Materials | Discovered new exit (range 15) 4083 | -8/Materials | Identified exit to Garrison 4083 | -8/Materials | Entered Garrison 4100 | -8/Garrison | Triggered checkpoint 4164 | -8/Garrison | Triggered checkpoint 4193 | -8/Garrison | Garrison Relay disabled 4199 | -8/Garrison | Destroyed 7 combat bots 4320 | -8/Garrison | Triggered checkpoint 4320 | -8/Garrison | Garrison Relay disabled 4402 | -8/Garrison | Triggered checkpoint 4458 | -8/Garrison | Triggered checkpoint 4458 | -8/Garrison | Triggered checkpoint 4482 | -8/Garrison | Triggered checkpoint 4507 | -8/Garrison | Destroyed 7 combat bots 4618 | -8/Garrison | Garrison Relay disabled 4671 | -8/Garrison | Rescued a captive Derelict 4672 | -8/Garrison | Rescued a captive Derelict 4695 | -8/Garrison | Garrison Relay disabled 4775 | -8/Garrison | Phase Generator disabled 4830 | -8/Garrison | Discovered new exit (range 5) 4939 | -8/Garrison | Triggered checkpoint 4996 | -8/Garrison | Triggered checkpoint 5002 | -8/Garrison | Discovered new exit (range 5) 5167 | -8/Garrison | Discovered new exit (range 66) 5167 | -8/Garrison | Discovered new exit (range 27) 5167 | -8/Garrison | Discovered new exit (range 30) 5167 | -8/Garrison | Discovered new exit (range 44) 5549 | -8/Garrison | Garrison Relay disabled 5646 | -8/Garrison | Triggered checkpoint 5669 | -8/Garrison | Garrison Relay disabled 5678 | -8/Garrison | Core integrity fell below 50% 5800 | -8/Garrison | Entered Materials 5877 | -8/Materials | Identified exit to Garrison 5877 | -8/Materials | Entered Garrison 5881 | -8/Garrison | Triggered checkpoint 5939 | -8/Garrison | Triggered checkpoint 5939 | -8/Garrison | Triggered checkpoint 5962 | -8/Garrison | Triggered checkpoint 5992 | -8/Garrison | Destroyed 15 combat bots 6005 | -8/Garrison | Triggered checkpoint 6058 | -8/Garrison | Discovered new exit (range 10) 6084 | -8/Garrison | Triggered checkpoint 6139 | -8/Garrison | Garrison Relay disabled 6227 | -8/Garrison | Triggered checkpoint 6246 | -8/Garrison | Garrison Relay disabled 6479 | -8/Garrison | Garrison Relay disabled 6556 | -8/Garrison | Garrison Relay disabled 6560 | -8/Garrison | Triggered checkpoint 6736 | -8/Garrison | Discovered new exit (range 10) 6778 | -8/Garrison | Discovered new exit (range 72) 6778 | -8/Garrison | Discovered new exit (range 14) 6778 | -8/Garrison | Discovered new exit (range 72) 6887 | -8/Garrison | Triggered checkpoint 6936 | -8/Garrison | Garrison Relay disabled 7141 | -8/Garrison | Garrison Relay disabled 7217 | -8/Garrison | Entered Materials 7617 | -8/Materials | First assault squad dispatched 8354 | -8/Materials | Discovered new exit (range 11) 8453 | -8/Materials | Core integrity fell below 20% 8504 | -8/Materials | High security lockdown imminent 8547 | -8/Materials | Destroyed 7 combat bots 8564 | -8/Materials | Entered Factory 8564 | -7/Factory | Evolved 2 slots: Utility x2 8600 | -7/Factory | Identified exit to Garrison 8600 | -7/Factory | Entered Garrison 8645 | -7/Garrison | Phase Generator disabled 8750 | -7/Garrison | Triggered checkpoint 8753 | -7/Garrison | Triggered checkpoint 8753 | -7/Garrison | Triggered checkpoint 8783 | -7/Garrison | Destroyed 10 combat bots 8787 | -7/Garrison | Garrison Relay disabled 8830 | -7/Garrison | Rescued a captive Derelict 8831 | -7/Garrison | Rescued a captive Derelict 8946 | -7/Garrison | Destroyed 10 combat bots 8966 | -7/Garrison | Triggered checkpoint 9065 | -7/Garrison | Garrison Relay disabled 9094 | -7/Garrison | Discovered new exit (range 11) 9120 | -7/Garrison | Crushed by falling debris 9314 | -7/Garrison | Triggered checkpoint 9321 | -7/Garrison | Discovered new exit (range 14) 9625 | -7/Garrison | Discovered new exit (range 8) 9968 | -7/Garrison | Entered Factory 9998 | -7/Factory | Identified exit to Garrison 9998 | -7/Factory | Entered Garrison 10059 | -7/Garrison | Garrison Relay disabled 10299 | -7/Garrison | Build established: Hacker-Mutant 10382 | -7/Garrison | Triggered checkpoint 10394 | -7/Garrison | Garrison Relay disabled 10522 | -7/Garrison | Rescued a captive Derelict 10527 | -7/Garrison | Rescued a captive Derelict 10530 | -7/Garrison | Triggered checkpoint 10537 | -7/Garrison | Discovered new exit (range 11) 10608 | -7/Garrison | Build established: Mutant 10690 | -7/Garrison | Spotted B-75 Beast 10736 | -7/Garrison | Destroyed B-75 Beast 10775 | -7/Garrison | Garrison Relay disabled 10793 | -7/Garrison | Lost 8 parts (1n5u2w) 10825 | -7/Garrison | Discovered new exit (range 14) 10889 | -7/Garrison | Attempted to access garrison exit controls, blocked by remote lockdown 10924 | -7/Garrison | Triggered checkpoint 10937 | -7/Garrison | Garrison Relay disabled 11002 | -7/Garrison | Triggered checkpoint 11031 | -7/Garrison | Triggered checkpoint 11068 | -7/Garrison | Garrison Relay disabled 11088 | -7/Garrison | Discovered new exit (range 15) 11104 | -7/Garrison | Attempted to access garrison exit controls, blocked by remote lockdown 11160 | -7/Garrison | Core integrity fell below 50% 11250 | -7/Garrison | Entered Factory 11250 | -6/Factory | Evolved 2 slots: Power x1, Utility x1 11344 | -6/Factory | Identified exit to Lower Caves 11492 | -6/Factory | Discovered new exit (range 16) 11561 | -6/Factory | Entered Lower Caves 11587 | -6/Lower Caves | Met a Warlord Commander 11587 | -6/Lower Caves | Encountered a Warlord checkpoint 11588 | -6/Lower Caves | Learned location of Warlord (-5) 11596 | -6/Lower Caves | Found Encrypted Comm Array 11647 | -6/Lower Caves | Build established: Hacker-Mutant 11867 | -6/Lower Caves | Discovered new exit (range 15) 11888 | -6/Lower Caves | Entered another Lower Caves area 12190 | -6/Lower Caves | Spotted B-75 Beast 12233 | -6/Lower Caves | Destroyed B-75 Beast 12345 | -6/Lower Caves | Discovered new exit (range 7) 12355 | -6/Lower Caves | Entered Data Miner 12355 | -6/Data Miner | Discovered new exit (range 6) 12380 | -6/Data Miner | Met Data Miner 12422 | -6/Data Miner | Received God Mode back door access code from Data Miner 12450 | -6/Data Miner | Entered Proximity Caves 12504 | -5/Proximity Caves | Build established: Mutant 12561 | -5/Proximity Caves | Escorted by Enhanced Grunt 12568 | -5/Proximity Caves | Attracted the attention of an 0b10 outpost 12665 | -5/Proximity Caves | Destroyed 11 combat bots 12720 | -5/Proximity Caves | Found Exp. Actuator Array 12767 | -5/Proximity Caves | Attracted the attention of an 0b10 checkpoint 12963 | -5/Proximity Caves | Discovered new exit (range 8) 12987 | -5/Proximity Caves | Received a Behemoth hack from an annoying Tinkerer 13143 | -5/Proximity Caves | Entered Factory 13143 | -5/Factory | Evolved 2 slots: Utility x2 13490 | -5/Factory | Identified exit to Upper Caves 13659 | -5/Factory | Entered Upper Caves 13661 | -5/Upper Caves | Attracted the attention of an 0b10 checkpoint 13933 | -5/Upper Caves | Attracted the attention of an 0b10 outpost 13973 | -5/Upper Caves | Destroyed 9 combat bots 14192 | -5/Upper Caves | Discovered new exit (range 12) 14211 | -5/Upper Caves | Entered another Upper Caves area 14282 | -5/Upper Caves | Discovered new exit (range 15) 14511 | -5/Upper Caves | Spotted B-75 Beast 14643 | -5/Upper Caves | Destroyed B-75 Beast 14789 | -5/Upper Caves | Discovered new exit (range 15) 14812 | -5/Upper Caves | Entered Warlord 15251 | -5/Warlord | Visited the Vortex Lab 15265 | -5/Warlord | Warlord's base attacked by MAIN.C 15457 | -5/Warlord | Met Warlord 15615 | -5/Warlord | Warlord forces counterattacked 15681 | -5/Warlord | Opened side exit 15710 | -5/Warlord | Discovered new exit (range 9) 15733 | -5/Warlord | Entered Proximity Caves 15733 | -4/Proximity Caves | Accompanied by 5 allies 15925 | -4/Proximity Caves | Build established: Commander-Mutant 15947 | -4/Proximity Caves | P-70 Sage assimilated allied Disruptor 6a 16044 | -4/Proximity Caves | Found AEGIS Remote Shield 16252 | -4/Proximity Caves | Build established: Mutant 16259 | -4/Proximity Caves | Attracted the attention of an 0b10 base 16297 | -4/Proximity Caves | Destroyed 16 combat bots 16502 | -4/Proximity Caves | Discovered new exit (range 7) 16515 | -4/Proximity Caves | Entered Factory 16515 | -4/Factory | Evolved 2 slots: Utility x2 16765 | -4/Factory | First assault squad dispatched 16780 | -4/Factory | Incoming assault squad redirected 16799 | -4/Factory | Identified exit to Garrison 16799 | -4/Factory | Entered Garrison 17032 | -4/Garrison | Triggered checkpoint 17033 | -4/Garrison | Garrison Relay disabled 17232 | -4/Garrison | Triggered checkpoint 17234 | -4/Garrison | Triggered checkpoint 17331 | -4/Garrison | Triggered checkpoint 17418 | -4/Garrison | Phase Generator disabled 17477 | -4/Garrison | Discovered new exit (range 16) 17549 | -4/Garrison | Discovered new exit (range 9) 17549 | -4/Garrison | Discovered new exit (range 40) 17549 | -4/Garrison | Discovered new exit (range 72) 17592 | -4/Garrison | Triggered checkpoint 17780 | -4/Garrison | Triggered checkpoint 17782 | -4/Garrison | Spotted Executioner 17786 | -4/Garrison | Spotted Executioner 17794 | -4/Garrison | Destroyed Executioner 17799 | -4/Garrison | Destroyed Executioner 18144 | -4/Garrison | Triggered checkpoint 18282 | -4/Garrison | Attempted to access garrison exit controls, blocked by remote lockdown 18352 | -4/Garrison | Triggered checkpoint 18470 | -4/Garrison | Entered Factory 18470 | -4/Factory | Accompanied by 2 allies 18515 | -4/Factory | Incoming investigation squad redirected 18605 | -4/Factory | Destroyed 8 combat bots 18635 | -4/Factory | Identified exit to Upper Caves 18635 | -4/Factory | Identified exit to Extension 18720 | -4/Factory | First assault squad dispatched 18736 | -4/Factory | Incoming assault squad redirected 18745 | -4/Factory | Incoming assault squad redirected 18892 | -4/Factory | Entered Extension 18902 | -4/Extension | Disrupted transfer network 18998 | -4/Extension | Found Adv. Powered Armor 19073 | -4/Extension | Destroyed 7 combat bots 19142 | -4/Extension | First assault squad dispatched 19164 | -4/Extension | Energy Cycler disabled 19164 | -4/Extension | Rescued a captive Derelict 19167 | -4/Extension | Rescued A7 19167 | -4/Extension | Rescued a captive Derelict 19172 | -4/Extension | Incoming assault squad redirected 19195 | -4/Extension | Rescued a captive Derelict 19240 | -4/Extension | Incoming assault squad redirected 19251 | -4/Extension | Incoming assault squad redirected 19337 | -4/Extension | Spotted B-86 Titan 19339 | -4/Extension | Spotted B-86 Titan 19358 | -4/Extension | Destroyed B-86 Titan 19376 | -4/Extension | Allies destroyed B-86 Titan 19407 | -4/Extension | Discovered new exit (range 15) 19410 | -4/Extension | Incoming assault squad redirected 19412 | -4/Extension | Found Adv. Powered Armor 19413 | -4/Extension | Incoming assault squad redirected 19659 | -4/Extension | Incoming assault squad redirected 19699 | -4/Extension | Destroyed 10 combat bots 19764 | -4/Extension | Discovered new exit (range 16) 19768 | -4/Extension | Discovered new exit (range 15) 19816 | -4/Extension | Entered Cetus 19816 | -4/Cetus | Accompanied by 1 ally (A7) 19821 | -4/Cetus | Acquired a Cetus Manufacturing Module code from A7 19824 | -4/Cetus | Found Fusion Bomb Launcher 19826 | -4/Cetus | Found Launcher Loader 19828 | -4/Cetus | Found Centrium Heavy Armor Plating 19844 | -4/Cetus | Spotted Cetus Guard 19845 | -4/Cetus | Spotted Cetus Guard 19845 | -4/Cetus | Spotted Cetus Guard 19856 | -4/Cetus | Allies destroyed Cetus Guard 19857 | -4/Cetus | Destroyed Cetus Guard 19861 | -4/Cetus | Spotted Cetus Guard 19862 | -4/Cetus | Allies destroyed Cetus Guard 19939 | -4/Cetus | Started Cetus Manufacturing Module 19959 | -4/Cetus | Discovered new exit (range 16) 19964 | -4/Cetus | Manufactured an Enhanced Grunt 19988 | -4/Cetus | Spotted Cetus Guard 19988 | -4/Cetus | Spotted Cetus Guard 19989 | -4/Cetus | Manufactured an Enhanced Grunt 19989 | -4/Cetus | Spotted Cetus Guard 19997 | -4/Cetus | Destroyed Cetus Guard 20000 | -4/Cetus | Allies destroyed Cetus Guard 20007 | -4/Cetus | Spotted Cetus Guard 20012 | -4/Cetus | Allies destroyed Cetus Guard 20013 | -4/Cetus | High security lockdown imminent 20013 | -4/Cetus | Destroyed Cetus Guard 20014 | -4/Cetus | Manufactured an Enhanced Grunt 20024 | -4/Cetus | Discovered new exit (range 15) 20032 | -4/Cetus | Met Revision 17 20034 | -4/Cetus | Destroyed 9 combat bots 20039 | -4/Cetus | Manufactured an Enhanced Grunt 20064 | -4/Cetus | Manufactured an Enhanced Grunt 20093 | -4/Cetus | High security lockdown engaged 20093 | -4/Cetus | Entered Archives 20093 | -4/Archives | Accompanied by 5 allies (A7) 20216 | -4/Archives | Discovered new exit (range 16) 20241 | -4/Archives | Entered Hub_04(d) 20241 | -4/Hub_04(d) | Accompanied by 4 allies 20348 | -4/Hub_04(d) | Build established: Commander-Mutant 20491 | -4/Hub_04(d) | First assault squad dispatched 20506 | -4/Hub_04(d) | Incoming assault squad redirected 20545 | -4/Hub_04(d) | Incoming assault squad redirected 20547 | -4/Hub_04(d) | Discovered new exit (range 8) 20578 | -4/Hub_04(d) | High security lockdown imminent 20587 | -4/Hub_04(d) | Destroyed 18 combat bots 20588 | -4/Hub_04(d) | Identified exit to Research 20658 | -4/Hub_04(d) | High security lockdown engaged 20697 | -4/Hub_04(d) | Disrupted transfer network 20766 | -4/Hub_04(d) | Destroyed 20 combat bots 20793 | -4/Hub_04(d) | Network Hub disabled 20798 | -4/Hub_04(d) | Found Tactical Quantum Warhead 20819 | -4/Hub_04(d) | Build established: Mutant 20876 | -4/Hub_04(d) | Destroyed 21 combat bots 20885 | -4/Hub_04(d) | Lost 3 parts (1p2u) 20914 | -4/Hub_04(d) | Discovered exit to Research (range 15) 21002 | -4/Hub_04(d) | Lost 4 parts (4u) 21006 | -4/Hub_04(d) | Destroyed 20 combat bots 21031 | -4/Hub_04(d) | Spotted Lightning 21032 | -4/Hub_04(d) | Network Hub disabled 21033 | -4/Hub_04(d) | Spotted Lightning 21034 | -4/Hub_04(d) | Destroyed Lightning 21037 | -4/Hub_04(d) | Destroyed Lightning 21038 | -4/Hub_04(d) | System corruption reached 10% 21038 | -4/Hub_04(d) | Destroyed Lightning 21062 | -4/Hub_04(d) | Destroyed 7 combat bots 21066 | -4/Hub_04(d) | Destroyed Lightning 21069 | -4/Hub_04(d) | Destroyed Lightning 21095 | -4/Hub_04(d) | Lost 3 parts (3u) 21098 | -4/Hub_04(d) | Destroyed 9 combat bots 21104 | -4/Hub_04(d) | Spotted Lightning 21109 | -4/Hub_04(d) | Entered Research 21109 | -3/Research | Evolved 2 slots: Utility x2 21140 | -3/Research | Spotted B-86 Titan 21309 | -3/Research | Revision forces began assault on 0b10 21403 | -3/Research | Met up with Revision 17++ 21559 | -3/Research | High security lockdown imminent 21603 | -3/Research | Identified exit to Garrison 21615 | -3/Research | Entered Garrison 21784 | -3/Garrison | Triggered checkpoint 21830 | -3/Garrison | Triggered checkpoint 21830 | -3/Garrison | Triggered checkpoint 21837 | -3/Garrison | Destroyed B-86 Titan 21858 | -3/Garrison | Destroyed 12 combat bots 21868 | -3/Garrison | Triggered checkpoint 21879 | -3/Garrison | Triggered checkpoint 21891 | -3/Garrison | Build established: Hacker-Mutant 21917 | -3/Garrison | Destroyed 8 combat bots 22038 | -3/Garrison | Garrison Relay disabled 22067 | -3/Garrison | Phase Generator disabled 22090 | -3/Garrison | Discovered new exit (range 3) 22227 | -3/Garrison | Discovered new exit (range 13) 22273 | -3/Garrison | Triggered checkpoint 22328 | -3/Garrison | Triggered checkpoint 22374 | -3/Garrison | Destroyed 7 combat bots 22378 | -3/Garrison | Lost 3 parts (2u1w) 22594 | -3/Garrison | Garrison Relay disabled 22713 | -3/Garrison | Discovered new exit (range 12) 22803 | -3/Garrison | Build established: Mutant 22920 | -3/Garrison | Triggered checkpoint 23014 | -3/Garrison | Found Zero-point Reactor 23044 | -3/Garrison | Found 7V-RTL's Ultimate Field 23085 | -3/Garrison | Entered Research 23085 | -3/Research | Accompanied by 2 allies 23167 | -3/Research | Discovered new exit (range 8) 23203 | -3/Research | Entered Armory 23203 | -3/Armory | Accompanied by 2 allies 23453 | -3/Armory | First assault squad dispatched 23782 | -3/Armory | Incoming assault squad redirected 23979 | -3/Armory | Incoming assault squad redirected 24042 | -3/Armory | System corruption reached 10% 24044 | -3/Armory | Incoming assault squad redirected 24069 | -3/Armory | Destroyed 8 combat bots 24111 | -3/Armory | Destroyed 8 combat bots 24358 | -3/Armory | Incoming assault squad redirected 24377 | -3/Armory | Destroyed 7 combat bots 24447 | -3/Armory | High security lockdown imminent 24481 | -3/Armory | Destroyed 9 combat bots 24527 | -3/Armory | High security lockdown engaged 24615 | -3/Armory | Spotted Striker 24636 | -3/Armory | Destroyed Striker 24664 | -3/Armory | Lost 4 parts (1p3u) 24679 | -3/Armory | Destroyed 25 combat bots 24696 | -3/Armory | Scanned by Researcher 24697 | -3/Armory | Destroyed Investigator 24744 | -3/Armory | Destroyed 17 combat bots 24767 | -3/Armory | Found Prototype Launcher 24801 | -3/Armory | Spotted B-86 Titan 24812 | -3/Armory | Destroyed B-86 Titan 24830 | -3/Armory | Spotted Executioner 24830 | -3/Armory | Spotted Investigator 24830 | -3/Armory | Destroyed Investigator 24845 | -3/Armory | Destroyed Executioner 24909 | -3/Armory | Destroyed 29 combat bots 24918 | -3/Armory | Sterilization system engaged 24918 | -3/Armory | Non-combat units ordered to evacuate 25018 | -3/Armory | Combat units ordered to evacuate 25049 | -3/Armory | Discovered new exit (range 5) 25061 | -3/Armory | Entered Lab 25071 | -3/Lab | Discovered new exit (range 9) 25111 | -3/Lab | Unable to decrypt terminal 25167 | -3/Lab | Found Point Singularity Launcher 25168 | -3/Lab | Detected for breach 25174 | -3/Lab | Confronted by A5 25217 | -3/Lab | Destroyed A5 25267 | -3/Lab | Gained access to the hidden lab's interior 25280 | -3/Lab | Unable to decrypt terminal 25410 | -3/Lab | Unable to decrypt terminal 25537 | -3/Lab | Disabled Active System Cloaker 25546 | -3/Lab | MAIN.C forces arrive to investigate 25584 | -3/Lab | Entered Research 25584 | -2/Research | Warlord forces began assault on 0b10 25584 | -2/Research | Evolved 2 slots: Utility x2 25609 | -2/Research | Distinguished unit "The Professionals" dispatched to help 25609 | -2/Research | Distinguished unit "Lobotomizers" dispatched to help 25694 | -2/Research | Research machine network offline 25903 | -2/Research | Identified exit to Garrison 25903 | -2/Research | Entered Garrison 25923 | -2/Garrison | Phase Generator disabled 26002 | -2/Garrison | Triggered checkpoint 26026 | -2/Garrison | Spotted B-90 Cyclops 26068 | -2/Garrison | Destroyed B-90 Cyclops 26099 | -2/Garrison | Triggered checkpoint 26292 | -2/Garrison | Triggered checkpoint 26295 | -2/Garrison | Discovered new exit (range 10) 26342 | -2/Garrison | Triggered checkpoint 26384 | -2/Garrison | Destroyed 11 combat bots 26548 | -2/Garrison | Triggered checkpoint 26629 | -2/Garrison | Garrison Relay disabled 26885 | -2/Garrison | Garrison Relay disabled 26908 | -2/Garrison | Build established: Commander-Mutant 27038 | -2/Garrison | Triggered checkpoint 27230 | -2/Garrison | Discovered new exit (range 10) 27288 | -2/Garrison | Triggered checkpoint 27376 | -2/Garrison | Triggered checkpoint 27611 | -2/Garrison | Build established: Mutant 27630 | -2/Garrison | Garrison Relay disabled 27660 | -2/Garrison | Triggered checkpoint 27831 | -2/Garrison | Learned Research security intel 27831 | -2/Garrison | Identified exit to Research 27939 | -2/Garrison | Entered Research 28056 | -2/Research | Identified exit to DSF 28056 | -2/Research | Entered DSF 28116 | -2/DSF | Additional patrols routed to DSF 28240 | -2/DSF | Discovered new exit (range 14) 28306 | -2/DSF | Sterilization system engaged 28326 | -2/DSF | Ambient heat levels rising (+10) 28332 | -2/DSF | Entered Access 28332 | -1/Access | Evolved 2 slots: Weapon x2 28335 | -1/Access | Found Singularity Reactor 28582 | -1/Access | First assault squad dispatched 28610 | -1/Access | Incoming assault squad redirected 28627 | -1/Access | Build established: Tank 28852 | -1/Access | Destroyed 9 combat bots 29098 | -1/Access | Incoming assault squad redirected 29218 | -1/Access | Spotted B-99 Colossus 29387 | -1/Access | Discovered new exit (range 7) 29405 | -1/Access | Incoming assault squad redirected 29414 | -1/Access | Identified exit to Command 29414 | -1/Access | Entered Command 29691 | -1/Command | First assault squad dispatched 29707 | -1/Command | Incoming assault squad redirected 29715 | -1/Command | Disengaged cave seal 29715 | -1/Command | Derelicts emerged from the dark tunnel 29716 | -1/Command | Welcomed Warlord to Command 29778 | -1/Command | Spotted B-99 Colossus 29910 | -1/Command | Incoming investigation squad redirected 29929 | -1/Command | Incoming investigation squad redirected 30081 | -1/Command | Build established: Hacker-Mutant 30144 | -1/Command | Warlord commented on Warlord statues 30156 | -1/Command | Spotted Combat Programmer 30156 | -1/Command | Spotted Combat Programmer 30159 | -1/Command | Spotted M Guard 30159 | -1/Command | Spotted M Guard 30175 | -1/Command | Combat Programmer assimilated allied KL-XO8(d) 30187 | -1/Command | Combat Programmer assimilated allied G8-858(M) 30199 | -1/Command | All MAIN.C guards destroyed 30457 | -1/Command | 0b10 Conduit disabled 30459 | -1/Command | Met MAIN.C 30461 | -1/Command | Warlord shut down involuntarily 30467 | -1/Command | System corruption reached 10% 30474 | -1/Command | Incoming assault squad redirected 30496 | -1/Command | Destroyed MAIN.C Shell 30499 | -1/Command | MAIN.C activated Command garrisons 30505 | -1/Command | Surrendered to MAIN.C 30505 | -1/Command | Loaded intel: 52 machine locations 30505 | -1/Command | Loaded intel: 91 trap records 30505 | -1/Command | Identified exit to Surface 30505 | -1/Command | Discovered exit to Surface (range 44) 30505 | -1/Command | Discovered exit to Surface (range 62) 30536 | -1/Command | Lost 7 parts (1n4u2w) 30686 | -1/Command | MAIN.C activated Command garrisons 30725 | -1/Command | Unknown forces attacked Command 30725 | -1/Command | Spotted EQ-000 30744 | -1/Command | Spotted EQ-002 30750 | -1/Command | Destroyed EQ-000 30758 | -1/Command | Spotted EQ-013 30770 | -1/Command | Spotted EQ-008 30772 | -1/Command | Found Supercharged TR 30772 | -1/Command | Warped through subspace 30781 | -1/Command | Spotted EQ-015 30788 | -1/Command | Spotted EQ-003 30788 | -1/Command | Spotted EQ-004 30790 | -1/Command | Core integrity fell below 50% 30797 | -1/Command | Discovered exit to Surface (range 31) 30797 | -1/Command | Discovered exit to Surface (range 84) 30797 | -1/Command | Extracted map data and part IDs from MAIN.C's data core 30804 | -1/Command | Core integrity fell below 20% 30805 | -1/Command | Spotted EQ-006 30811 | -1/Command | Destroyed by Swarm Drone with Compact Gauss Rifle Last Messages --------------- 30796_ Penetrated by Slug. 30797_ EXIT=FOUND: SURFACE 30797_ Acquired data core, extracted map data and part IDs. 30797_ Slug penetrates Reinforced Barrier. 30798_ Penetrated by Slug. 30798_ Slug penetrates Swarm Drone. 30798_ Swarm Drone destroyed. 30800_ Penetrated by Slug. 30805_ Acquired 57 matter. 30805_ Penetrated by Slug. 30805_ Armor Integrity Analyzer destroyed. 30806_ System corrupted: Matter fused (-8). 30806_ Adv. Hacking Suite destroyed. 30806_ Acquired 18 matter. 30807_ Penetrated by Slug. 30807_ Acquired 13 matter. 30808_ Acquired 23 matter. 30809_ Penetrated by Slug. 30809_ Knocked back. 30811_ Penetrated by Slug. Map ----- +----------------------------------------------------+ | #?????????????????????????????????#?#?#????# | | #?????????????????????????????????#?#?#????# | | #?????????????????????????????????#?#?#????# | | #?????????????????????????????????#?#?#????# | | #?????????????????????????????????#?#?#????###+ | | #?????????????????????????????????#?#?#??????# | | #?????????????????????????????????#?#?#??????# | | #?????????????????????????????????#?#?#??????# | | #?????????????????????????????????#?#?#??????# | | #?????????????????????????????????#?#?#??????## | | ####?????????????????????????????????#?#?#???????? | | ?????????????????????????????????????#?#?#???????? | | ?????????????????????????????????????#?#?#???????? | | ?????????????????????????????????????#?#?#???????? | | ?????????????????????????????????????#?#?#???????? | | ?????????????????????????????????????#?#?#???????? | | ?????????????????????????????????????#?#?#???????? | | ?????????????????????????????????????#?#?#???????? | | ?????????????????????????????????????#?#?#???????? | | ??????###########################????#?#?#???????? | | ??????#?????????????????????????#????#?#?#???????? | | ??????#?#######################?#????#?#?#???????? | | ??????#?#""""""" """" #################### | | ??????#?#"" "" % #?#???????????????#? | | ??????#?#""""" "" #################### | | ??????#?#"""" """""" @ / W | | ??????#?#" " """ / % | | ??????#?#"" """" / Q | | ###???#?#"" """ " ####### ######### # | | #???#?# " % #?#??????????# # # | | #???#?# " ################# | | #???#?# " ""#?#????#?#?#??# ## | | #???#?#" " % """#?#????#?#?#??# #?# | | #???#?#"" """"#?#????#?#?#??? ? # | | #???#?# Q """#?#????#?#?#??????# | | ###?#?# " #?#????#?#?#??????# | | #### " #?#????#?#?#??????# | | " #?#????#?#?#????? # | | " #?#????#?#?#??????# | | #?#????#?#?#????? ## | | #### " #?#????#?#?#???????? | | ##?# % " """#?#????#?#?#???????? | | ##?# " " #?#????#?#?#???????? | | ###?#######################?#????#?#?#???????? | | ##?????????????????????????#????#?#?#???????? | | #############################????#?#?#???????? | | #????????????????????????????????#?#?#???????? | | #???????????????????????????????#?#?#???????? | | ##???????????????????????????????#?#?#???????? | | #????????????????????????????????#?#?#???????? | +----------------------------------------------------+ Best States ------------- Heat Dissipation 167 Energy Generation 126 Energy Capacity 1100 Matter Stores 300 Matter Capacity 300 Sight Range 16 Terrain Scan Range 16 Terrain Scan Density 210 Power Amplification 60 Armor Coverage 2800 Resistance: KI 30 Resistance: TH 30 Resistance: EX 50 Resistance: EM 25 Core Shielding 40 Utility Shielding 90 Weapon Shielding 66 Weapon Cycling 30 Evasion (%) 50 Targeting Accuracy 24 Launcher Accuracy 30 Target Analysis 8 Core Analysis 8 Armor Integrity Analysis 40 Recoil Reduction 2 Matter Filtering 50 Particle Charging 25 Kinecelleration 50 Offensive Hacking 42 Defensive Hacking 16 Item Schematics ----------------- Hcp. Storage Unit | -9/Materials | Extracted Power Shielding | -9/Materials | Extracted Hrd. Light Armor Plating | -9/Materials | Extracted Katana | -8/Materials | Extracted Imp. Medium Laser | -8/Materials | Extracted Imp. Aluminum Leg | -8/Materials | Extracted Hvy. EM Pulse Gun | -8/Materials | Extracted Imp. Signal Interpreter | -8/Materials | Extracted Imp. Datajack | -8/Materials | Extracted System Shield | -8/Materials | Extracted Combat Drone Bay | -6/Data Miner | Free Lgt. Regenerative Plating | -6/Data Miner | Free Cld. Nuclear Pulse Thruster | -6/Data Miner | Free Prc. Matter Filter | -6/Data Miner | Free Mni. Smartbomb Launcher | -6/Data Miner | Free Adv. Medium Treads | -6/Data Miner | Free Adv. Reaction Control System | -6/Data Miner | Free HERF Cannon | -6/Data Miner | Free Adv. Plasma Cannon | -6/Data Miner | Free Railgun | -6/Data Miner | Free Matter Neutralizer | -6/Data Miner | Free Hyp. Railgun | -6/Data Miner | Free Q-thruster | -6/Data Miner | Free Robot Schematics ------------------ Y-64 Sentinel | -6/Data Miner | Free R-10 Processor | -6/Data Miner | Free S-27 Virus | -6/Data Miner | Free G-50 Soldier | -6/Data Miner | Free L-61 Swordsman | -6/Data Miner | Free A-15 Conveyor | -6/Data Miner | Free B-60 Warrior | -6/Data Miner | Free Fabricated ------------ Nothing Alien Tech Used ----------------- Supercharged TR Achievements -------------- Anyone Home? Corridor Of Doom Meet Your Maker Revolutionary Research Challenges ------------ None Cogshop Purchases (202) ------------------------- Mni. Grenade Launcher (1049) Hpw. Tractor Beam (700) Med. Armor Plating (654) Adv. Beam Cannon (807) Lrn. Tractor Beam (752) Hvy. Particle Cannon (1079) Hvy. Particle Cannon (1079) Cooling System (716) Adv. Targeting Computer (693) Arm. Wheel (711) Arm. Wheel (711) Hvy. Ion Engine (613) Adv. Targeting Computer (814) Hrd. Medium Armor Plating (871) Rocket Launcher (929) Rocket Launcher (929) Rocket Launcher (1285) Imp. VTOL Module (520) Imp. VTOL Module (520) Imp. VTOL Module (520) Imp. VTOL Module (520) Imp. VTOL Module (520) Imp. Signal Interpreter (852) Lrn. Tractor Beam (641) Lrn. Tractor Beam (641) Launcher Guidance Computer (1035) Med. Reactive Plating (970) Cld. Particle Cannon (1242) Cld. Particle Cannon (1242) Cld. Particle Cannon (1242) Cld. Particle Cannon (1242) Imp. Carbon-fiber Leg (Loot Box) Exp. Powered Armor (Loot Box) Rnf. Deuterium Engine (773) Rnf. Deuterium Engine (773) Rocket Array (2755) Rocket Array (2755) Matter Filter (894) Arm. Huge Wheel (952) Machine Analyzer (855) Armor Integrity Analyzer (960) Reactive Plating (752) Arm. Huge Wheel (463) Arm. Wheel (360) Cld. Particle Cannon (831) Cld. Particle Cannon (831) Cld. Particle Cannon (831) Cld. Particle Cannon (1577) Matter Filter (727) Med. Reflective Plating (937) Med. Reactive Plating (937) Imp. Cooling System (910) Med. Reflective Plating (951) Adv. Targeting Computer (799) Particle Charger (485) Enh. Nuclear Core (840) Imp. Terrain Scanner (925) Imp. Terrain Scanner (925) Adv. Terrain Scan Processor (942) Adv. Targeting Computer (966) Hvy. Rocket Launcher (1048) Exp. Targeting Computer (2160) Exp. Targeting Computer (2160) Launcher Loader (1315) System Restoration Module (1183) Lrn. Missile Launcher (1502) Hrd. Heavy Armor Plating (827) Arm. Huge Wheel (834) Exp. Targeting Computer (2704) Launcher Loader (1965) System Restoration Module (2163) Imp. Hacking Suite (1319) Imp. Hacking Suite (1319) Imp. Particle Charger (1681) Cld. Plasma Cannon (1465) Cld. Plasma Cannon (1465) Med. Reactive Plating (746) F-cell Engine (981) Force Field (1830) F-cell Engine (981) Power Amplifier (2612) Power Amplifier (2612) Power Amplifier (2612) Cld. Plasma Cannon (1811) Cld. Plasma Cannon (1811) Cld. Plasma Cannon (1811) Adv. Heat Sink (2612) Arm. Huge Wheel (1084) Adv. System Shield (1567) Adv. Hacking Suite (1567) Neutrino Core (908) Force Field (3102) Fusion Reactor (2104) Imp. Heavy Armor Plating (879) Armor Integrity Analyzer (788) Neutron Missile Launcher (3304) Biometal Medium Treads (Loot Box) Exp. Core Shielding (Loot Box) Exp. Actuator Array (Loot Box) Imp. Force Field (1582) Enh. Fission Core (1041) Lyr. Heavy Armor Plating (885) Adv. Particle Charger (1970) Imp. Weapon Cycler (1793) Imp. Powered Armor (1270) Remote Datajack (917) Imp. Launcher Guidance Computer (958) Lgt. Quantum Reactor (Loot Box) Biometal Heavy Treads (Loot Box) Biometal Heavy Treads (Loot Box) Quantum Reactor (Loot Box) AEGIS Remote Shield (Loot Box) Adv. Power Amplifier (1242) Prc. Matter Filter (1138) Adv. Powered Armor (1797) Centrium Heavy Armor Plating (3937) Adv. Cooling System (1348) Adv. Powered Armor (1899) Exp. Thermal Shield (1319) Adv. Focal Shield (1218) Lrn. Tractor Beam (1047) Hvy. Neutron Cannon (1047) Exp. Cooling System (1609) Hvy. Neutron Cannon (1222) Adv. Target Analyzer (1132) Cld. Fission Core (2383) Adv. Particle Charger (1879) Launcher Loader (1566) Fusion Bomb Launcher (1990) Centrium Wheel (982) Centrium Wheel (982) Neutron Missile Launcher (4580) Adv. Signal Interpreter (1275) Imp. Shock Absorption System (1086) Neutron Missile Launcher (5475) Tactical Quantum Warhead (5931) Imp. Fusion Compressor (1114) Adv. Cooling System (1217) Imp. Weapon Shielding (820) Imp. Shock Absorption System (1378) Cld. Antimatter Reactor (2336) Adv. Force Field (1628) Lrn. Tractor Beam (1002) Insulated Plating (970) Graviton Reactor (2696) Graviton Reactor (2696) Adv. Power Amplifier (2156) Adv. Power Amplifier (2156) Exp. Force Field (5033) Exp. Thermal Defense Suite (4673) EM Disruption Field (1797) Imp. Matter Neutralizer (1458) Adv. System Shield (1107) Adv. Hacking Suite (1107) Adv. Hacking Suite (1107) Adv. Hacking Suite (1107) Coolant Network (2970) Imp. Launcher Guidance Computer (970) Matter Filter (2063) Tri-rail Accelerator (886) Tri-rail Accelerator (886) Imp. Kinecellerator (2889) Lrn. Tractor Beam (2101) Exp. Core Analyzer (1523) Imp. Armor Integrity Analyzer (1305) Adv. Target Analyzer (1844) Cmb. Linear Gravjet (Loot Box) Zero-point Reactor (Loot Box) 7V-RTL's Ultimate Field (Loot Box) Lgt. Quantum Reactor (Loot Box) Imp. Heavy Siege Treads (Loot Box) Adv. Targeting Computer (1145) Imp. Heavy Armor Plating (749) Lrn. Tractor Beam (1678) Prc. Matter Filter (2260) Imp. Quantum Reactor (1099) Imp. Quantum Reactor (1159) Imp. Shock Absorption System (2211) Exp. Utility Shielding (2317) Imp. Heavy Armor Plating (772) Adv. Power Amplifier (2863) Adv. Power Amplifier (3248) Weapon Mount (2707) Point Singularity Launcher (3697) Cld. Proton Cannon (1839) Adv. Focal Shield (3090) Lyr. Medium Armor Plating (995) Hdn. Centrium Wheel (1140) Armor Integrity Analyzer (744) Centrium Medium Armor Plating (2589) Adv. Kinecellerator (3898) Graphene Brace (1515) Lyr. Heavy Armor Plating (1397) Singularity Reactor (4123) Exp. Weapon Cycler (6081) Supercharged TR (Loot Box) Centrium Leg (Loot Box) Adv. Signal Interpreter (819) Exp. System Shield (4401) Adv. Hacking Suite (1989) Com. Mass Driver (1220) Adv. KE Penetrator (1155) Game ------ Seed ActiveShadingMagmablaster Manual? 0 Play Time 05:44:01 Cumulative 558.7 hours Start 2023.04.12 @ 00:52:31 End 2023.04.13 @ 18:00:48 Sessions 11 Manual Loads 0 Difficulty Rogue Special Mode AFD2019/Pay2Buy Game No. 575 Rogue 575 Adventurer 0 Explorer 0 Win Type - Total 1 Types 1/0/0/0/0/0/0/0/0 Lore% 70 Gallery% 84 Achievement% 67 Wizard Run 0 Options --------- ASCII 0 Keyboard 0 Movement Mouse Keybinds 0 Fullscreen 2 Font 24/Smallcaps Map View 76x50 Tactical HUD 1 Map Filters NONE Filters NONE Steam 1 RUN: 34fe173e-af98-4d36-bcc9-60941d234334